Workbook

Sheet 1. Information Sheet
M12: Version | N12: 2.3
E14: Utility Name | F14: Atikokan Hydro Inc.
E16: Service Territory | F16: (if applicable)
E18: Assigned EB Number | F18: EB-2013-0105
E20: Name of Contact and Title | F20: Wilf Thorburn, CEO Secretary/Treasurer
E22: Phone Number | F22: 807-597-6600
E24: Email Address | F24: wilf.thorburn@athydro.com
E26: We are applying for rates effective | F26: 2013-05-01
B29: Notes
C31: Pale green cells represent input cells.
C33: Pale blue cells represent drop-down lists. The applicant should select the appropriate item from the drop-down list.
C35: White cells contain fixed values, automatically generated values or formulae.

Sheet 2. Table of Contents
D14: 1. Information Sheet | H14: 8. Calculation of Def-Var RR
D15: 2. Table of Contents | H15: 9. Rev2Cost_GDPIPI
D16: 3. Rate Class Selection | H16: 10. Other Charges & LF
D17: 4. Current Tariff Schedule | H17: 11. Proposed Rates
D18: 5. 2013 Continuity Schedule | H18: 12. Summary Sheet
D19: 6. Billing Det. for Def-Var | H19: 13. Final Tariff Schedule
D20: 7. Cost Allocation for Def-Var | H20: 14. Bill Impacts

Sheet 3. Rate Class Selection
A12: Select the appropriate rate classes as they appear on your most recent Board-Approved Tariff of Rates and Charges, including the MicroFit Class.
A14: How many classes are listed on your most recent Board-Approved Tariff of Rates and Charges? | J14: 5
A16: Select Your Rate Classes from the Blue Cells below. Please ensure that a rate class is assigned to each shaded cell.
B18: Rate Class Classification
A19: 1 | B19: Residential
A20: 2 | B20: General Service Less Than 50 kW
A21: 3 | B21: General Service 50 to 4,999 kW
A22: 4 | B22: Street Lighting
A23: 5 | B23: MicroFit

Sheet 4. Current Tariff Schedule
Z1: 3 | AA1: January | AB1: ≥
AA2: February
AA3: March
AA4: April
AA5: May
AA6: June
AA7: July
AA8: August
AA9: September
AA10: October
AA11: November
B12: For each class, Applicants are required to copy and paste the class descriptions (located directly under the class name) and the description of the applicability of those rates (description is found under the class name and directly under the word "APPLICATION"). By using the drop-down lists located under the column labeled "Rate Description", please select the descriptions of the rates and charges that BEST MATCHES the descriptions on your most recent Board-Approved Tariff of Rates and Charges. If the description is not found in the drop-down list, please enter the description in the green cells under the correct class exactly as it appears on the tariff. Please do not enter more than one "Service Charge" for each class for which a base monthly fixed charge applies. **Note: If the current RRRP consists of only one line on the current tariff schedule, enter the same rate for "Rural Rate Protection Charge - effective until April 30, 2012" and "Rural Rate Protection Charge - effective on and after May 1, 2012". | AA12: December
B21: =IF(ISBLANK('1. Information Sheet'!F14), "Please Choose Distributor Name on Sheet 1", '1. Information Sheet'!F14) -> Atikokan Hydro Inc.
A22: Embedded Distributor | B22: TARIFF OF RATES AND CHARGES
A24: Residential | B24: Residential Service Classification
A25: Residential
A26: Residential | B26: This classification applies to an account taking electricity at 750 volts or less where the electricity is used exclusively in a separate metered living accommodation. Customers shall be residing in single-dwelling units that consist of a detached house or one unit of a semi-detached, duplex, triplex or quadruplex house, with a residential zoning. Separately metered dwellings within a town house complex or apartment building also qualify as residential customers. All customers are single-phase. Further servicing details are available in the distributor’s Conditions of Service.
A27: Residential
A28: Residential
A29: Residential
A30: Residential
A31: Residential
A32: Residential | B32: APPLICATION
A33: Residential
A34: Residential | B34: The application of these rates and charges shall be in accordance with the Licence of the Distributor and any Code or Order of the Board, and amendments thereto as approved by the Board, which may be applicable to the administration of this schedule.
A35: Residential
A36: Residential
A37: Residential | B37: No rates and charges for the distribution of electricity and charges to meet the costs of any work or service done or furnished for the purpose of the distribution of electricity shall be made except as permitted by this schedule, unless required by the Distributor’s Licence or a Code or Order of the Board, and amendments thereto as approved by the Board, or as specified herein.
A38: Residential
A39: Residential
A40: Residential
A41: Residential | B41: Unless specifically noted, this schedule does not contain any charges for the electricity commodity, be it under the Regulated Price Plan, a contract with a retailer or the wholesale market price, as applicable.
A42: Residential
A43: Residential
A44: Residential | B44: It should be noted that this schedule does not list any charges or assessments that are required by law to be charged by a distributor and that are not subject to Board approval, such as the Debt Retirement Charge, charges for Ministry of Energy Conservation and Renewable Energy Program, the Provincial Benefit and any applicable taxes.
A45: Residential
A46: Residential
A47: Residential
A48: Residential | B48: MONTHLY RATES AND CHARGES - Delivery Component (If applicable, Effective Date MUST be included in rate description)
A49: Residential | B49: Service Charge | H49: $ | I49: 33.99 | K49: 1_C_MSC
A50: Residential | B50: Distribution Volumetric Rate | H50: $/kWh | I50: 0.0134 | K50: 1_C_VC
A51: Residential | B51: Retail Transmission Rate - Network Service Rate | H51: $/kWh | I51: 0.0063 | K51: 1_C_RTSR_Network
A52: Residential | B52: Retail Transmission Rate - Line and Transformation Connection Service Rate | H52: $/kWh | I52: 0.0037 | K52: 1_C_RTSR_Connection
A53: Residential
A54: Residential
A55: Residential
A56: Residential
A57: Residential
A58: Residential
A59: Residential
A60: Residential
A61: Residential
A62: Residential
A63: Residential
A64: Residential
A65: Residential
A66: Residential
A67: Residential
A68: Residential
A69: Residential
A70: Residential
A71: Residential
A72: Residential
A73: Residential | B73: Smart Meter Cost Recovery Rider-effective until August 31, 2015 | H73: $ | I73: 0.48 | K73: 1_C_MSC_Rate_Rider_1 | L73: 2015-08-31
A74: Residential | B74: Stranded Meter Rate Rider-effective until August 31, 2015 | H74: $ | I74: 0.39 | K74: 1_C_MSC_Rate_Rider_2 | L74: 2015-08-31
A75: Residential | B75: Foregone Revenue Rate Rider-Fixed-effective until April 30, 2013 | H75: $ | I75: 0.85 | K75: 1_C_MSC_Rate_Rider_3 | L75: 2013-04-30
A76: Residential | B76: Foregone Revenue Rate Rider-Volumetric=effective until April 30, 2013 | H76: $/kWh | I76: 0.0003 | K76: 1_C_VC_Rate_Rider_kWh_1 | L76: 2013-04-30
A77: Residential | B77: Rater Rider for Global Adjustment Sub-Account Disposition(2012)-effective until April 30, 2016. Applicable only for Non-RPP Customers | H77: $/kWh | I77: 0.0004 | K77: 1_C_VC_Rate_Rider_kWh_2 | L77: 2016-04-30
A78: Residential | B78: Rate Rider for Deferral/Variance Account Dispositon (2012)-effective until April 30, 2016 | H78: $/kWh | I78: 0.0009 | K78: 1_C_VC_Rate_Rider_kWh_3 | L78: 2016-04-30
A79: Residential | B79: MONTHLY RATES AND CHARGES - Regulatory Component
A80: Residential
A81: Residential | B81: Wholesale Market Service Rate | H81: $/kWh | I81: 0.0052 | K81: 1_C_WMSR
A82: Residential | B82: Rural Rate Protection Charge - effective until April 30, 2012 | H82: $/kWh | I82: 0.0013 | K82: 1_C_RRPC_untilApril302012 | L82: 2012-04-30
A83: Residential | B83: Rural Rate Protection Charge - effective on and after May 1, 2012 | H83: $/kWh | I83: 0.0011 | K83: 1_C_RRPC_AfterMay12012 | L83: 2012-05-01
A84: Residential | B84: Standard Supply Service - Administrative Charge (if applicable) | H84: $ | I84: 0.25 | K84: 1_C_SSS
A87: General Service Less Than 50 kW | B87: General Service Less Than 50 kW Service Classification
A88: General Service Less Than 50 kW
A89: General Service Less Than 50 kW | B89: This classification applies to a non residential account taking electricity at 750 volts or less whose average monthly maximum demand is less than, or is forecast to be less than, 50 kW. Further servicing details are available in the distributor’s Conditions of Service.
A90: General Service Less Than 50 kW
A91: General Service Less Than 50 kW
A92: General Service Less Than 50 kW
A93: General Service Less Than 50 kW
A94: General Service Less Than 50 kW
A95: General Service Less Than 50 kW | B95: APPLICATION
A96: General Service Less Than 50 kW
A97: General Service Less Than 50 kW | B97: The application of these rates and charges shall be in accordance with the Licence of the Distributor and any Code or Order of the Board, and amendments thereto as approved by the Board, which may be applicable to the administration of this schedule.
A98: General Service Less Than 50 kW
A99: General Service Less Than 50 kW
A100: General Service Less Than 50 kW | B100: No rates and charges for the distribution of electricity and charges to meet the costs of any work or service done or furnished for the purpose of the distribution of electricity shall be made except as permitted by this schedule, unless required by the Distributor’s Licence or a Code or Order of the Board, and amendments thereto as approved by the Board, or as specified herein.
A101: General Service Less Than 50 kW
A102: General Service Less Than 50 kW
A103: General Service Less Than 50 kW
A104: General Service Less Than 50 kW | B104: Unless specifically noted, this schedule does not contain any charges for the electricity commodity, be it under the Regulated Price Plan, a contract with a retailer or the wholesale market price, as applicable.
A105: General Service Less Than 50 kW
A106: General Service Less Than 50 kW
A107: General Service Less Than 50 kW | B107: It should be noted that this schedule does not list any charges, assessments or credits that are required by law to be invoiced by a distributor and that are not subject to Board approval, such as the Debt Retirement Charge, the Global Adjustment, the Ontario Clean Energy Benefit and the HST.
A108: General Service Less Than 50 kW
A109: General Service Less Than 50 kW
A110: General Service Less Than 50 kW
A111: General Service Less Than 50 kW | B111: MONTHLY RATES AND CHARGES - Delivery Component (If applicable, Effective Date MUST be included in rate description)
A112: General Service Less Than 50 kW | B112: Service Charge | H112: $ | I112: 74.07 | K112: 2_C_MSC
A113: General Service Less Than 50 kW | B113: Distribution Volumetric Rate | H113: $/kWh | I113: 0.0094 | K113: 2_C_VC
A114: General Service Less Than 50 kW | B114: Retail Transmission Rate - Network Service Rate | H114: $/kWh | I114: 0.0056 | K114: 2_C_RTSR_Network
A115: General Service Less Than 50 kW | B115: Retail Transmission Rate - Transformation Connection Service Rate | H115: $/kWh | I115: 0.0032 | K115: 2_C_RTSR_Transformer_Connection
A116: General Service Less Than 50 kW
A117: General Service Less Than 50 kW
A118: General Service Less Than 50 kW
A119: General Service Less Than 50 kW
A120: General Service Less Than 50 kW
A121: General Service Less Than 50 kW
A122: General Service Less Than 50 kW
A123: General Service Less Than 50 kW
A124: General Service Less Than 50 kW
A125: General Service Less Than 50 kW
A126: General Service Less Than 50 kW
A127: General Service Less Than 50 kW
A128: General Service Less Than 50 kW
A129: General Service Less Than 50 kW
A130: General Service Less Than 50 kW
A131: General Service Less Than 50 kW
A132: General Service Less Than 50 kW
A133: General Service Less Than 50 kW
A134: General Service Less Than 50 kW
A135: General Service Less Than 50 kW
A136: General Service Less Than 50 kW | B136: Smart Meter Cost Recovery Rider - effective until August 31, 2015 | H136: $ | I136: 0.78 | K136: 2_C_MSC_Rate_Rider_1 | L136: 2015-08-31
A137: General Service Less Than 50 kW | B137: Stranded Meter Rate Rider - effective until August 31, 2015 | H137: $ | I137: 0.39 | K137: 2_C_MSC_Rate_Rider_2 | L137: 2015-08-31
A138: General Service Less Than 50 kW | B138: Foregone Revenue Rate Rider - Fixed - effective until April 30, 2013 | H138: $ | I138: 1.01 | K138: 2_C_MSC_Rate_Rider_3 | L138: 2013-04-30
A139: General Service Less Than 50 kW | B139: Foregone Revenue Rate Rider - Volumetric - effective until April 30, 2013 | H139: $/kWh | I139: 0.0001 | K139: 2_C_VC_Rate_Rider_kWh_1 | L139: 2013-04-30
A140: General Service Less Than 50 kW | B140: Rate Rider for Global Adjustment Sub-Account Disposition (2012) – effective until April 30, 2016 Applicable only for Non-RPP Customers | H140: $/kWh | I140: 0.0004 | K140: 2_C_VC_GA_Rate_Rider_kWh_1 | L140: 2016-04-30
A141: General Service Less Than 50 kW | B141: Rate Rider for Deferral/Variance Account Disposition (2012) – effective until April 30, 2016 | H141: $/kWh | I141: 0.0007 | K141: 2_C_VC_Rate_Rider_kWh_2 | L141: 2016-04-30
A142: General Service Less Than 50 kW | B142: MONTHLY RATES AND CHARGES - Regulatory Component
A143: General Service Less Than 50 kW
A144: General Service Less Than 50 kW | B144: Wholesale Market Service Rate | H144: $/kWh | I144: 0.0052 | K144: 2_C_WMSR
A145: General Service Less Than 50 kW | B145: Rural Rate Protection Charge - effective until April 30, 2012 | H145: $/kWh | I145: 0.0013 | K145: 2_C_RRPC_untilApril302012 | L145: 2012-04-30
A146: General Service Less Than 50 kW | B146: Rural Rate Protection Charge - effective on and after May 1, 2012 | H146: $/kWh | I146: 0.0011 | K146: 2_C_RRPC_AfterMay12012 | L146: 2012-05-01
A147: General Service Less Than 50 kW | B147: Standard Supply Service - Administrative Charge (if applicable) | H147: $ | I147: 0.25 | K147: 2_C_SSS
A150: General Service 50 to 4,999 kW | B150: General Service 50 to 4,999 kW Service Classification
A151: General Service 50 to 4,999 kW
A152: General Service 50 to 4,999 kW | B152: This classification applies to a non residential account whose average monthly maximum demand used for billing purposes is equal to or greater than, or is forecast to be equal to or greater than, 50 kW but less than 5,000 kW. Further servicing details are available in the distributor’s Conditions of Service.
A153: General Service 50 to 4,999 kW
A154: General Service 50 to 4,999 kW
A155: General Service 50 to 4,999 kW
A156: General Service 50 to 4,999 kW
A157: General Service 50 to 4,999 kW
A158: General Service 50 to 4,999 kW | B158: APPLICATION
A159: General Service 50 to 4,999 kW
A160: General Service 50 to 4,999 kW | B160: The application of these rates and charges shall be in accordance with the Licence of the Distributor and any Code or Order of the Board, and amendments thereto as approved by the Board, which may be applicable to the administration of this schedule.
A161: General Service 50 to 4,999 kW
A162: General Service 50 to 4,999 kW
A163: General Service 50 to 4,999 kW | B163: No rates and charges for the distribution of electricity and charges to meet the costs of any work or service done or furnished for the purpose of the distribution of electricity shall be made except as permitted by this schedule, unless required by the Distributor’s Licence or a Code or Order of the Board, and amendments thereto as approved by the Board, or as specified herein.
A164: General Service 50 to 4,999 kW
A165: General Service 50 to 4,999 kW
A166: General Service 50 to 4,999 kW
A167: General Service 50 to 4,999 kW | B167: Unless specifically noted, this schedule does not contain any charges for the electricity commodity, be it under the Regulated Price Plan, a contract with a retailer or the wholesale market price, as applicable.
A168: General Service 50 to 4,999 kW
A169: General Service 50 to 4,999 kW
A170: General Service 50 to 4,999 kW | B170: It should be noted that this schedule does not list any charges or assessments that are required by law to be charged by a distributor and that are not subject to Board approval, such as the Debt Retirement Charge, charges for Ministry of Energy Conservation and Renewable Energy Program, the Provincial Benefit and any applicable taxes.
A171: General Service 50 to 4,999 kW
A172: General Service 50 to 4,999 kW
A173: General Service 50 to 4,999 kW
A174: General Service 50 to 4,999 kW | B174: MONTHLY RATES AND CHARGES - Delivery Component (If applicable, Effective Date MUST be included in rate description)
A175: General Service 50 to 4,999 kW | B175: Service Charge | H175: $ | I175: 547.77 | K175: 3_C_MSC
A176: General Service 50 to 4,999 kW | B176: Distribution Volumetric Rate | H176: $/kW | I176: 2.1698 | K176: 3_C_VC
A177: General Service 50 to 4,999 kW | B177: Retail Transmission Rate - Network Service Rate | H177: $/kW | I177: 2.2668 | K177: 3_C_RTSR_Network
A178: General Service 50 to 4,999 kW | B178: Retail Transmission Rate - Network Service Rate - Interval Metered | H178: $/kW | I178: 2.4048 | K178: 3_C_RTSR_Network_Interval
A179: General Service 50 to 4,999 kW | B179: Retail Transmission Rate - Line and Transformation Connection Service Rate | H179: $/kW | I179: 1.2627 | K179: 3_C_RTSR_Connection
A180: General Service 50 to 4,999 kW | B180: Retail Transmission Rate - Line and Transformation Connection Service Rate - Interval Metered | H180: $/kW | I180: 1.3956 | K180: 3_C_RTSR_Connection_Interval
A181: General Service 50 to 4,999 kW
A182: General Service 50 to 4,999 kW
A183: General Service 50 to 4,999 kW
A184: General Service 50 to 4,999 kW
A185: General Service 50 to 4,999 kW
A186: General Service 50 to 4,999 kW
A187: General Service 50 to 4,999 kW
A188: General Service 50 to 4,999 kW
A189: General Service 50 to 4,999 kW
A190: General Service 50 to 4,999 kW
A191: General Service 50 to 4,999 kW
A192: General Service 50 to 4,999 kW
A193: General Service 50 to 4,999 kW
A194: General Service 50 to 4,999 kW
A195: General Service 50 to 4,999 kW
A196: General Service 50 to 4,999 kW
A197: General Service 50 to 4,999 kW
A198: General Service 50 to 4,999 kW
A199: General Service 50 to 4,999 kW | B199: Smart Meter Cost Recovery Rider – effective until August 31, 2015 | H199: $ | I199: 3.8 | K199: 3_C_MSC_Rate_Rider_1 | L199: 2015-08-31
A200: General Service 50 to 4,999 kW | B200: Stranded Meter Rate Rider - effective until August 31, 2015 | H200: $ | I200: 0.39 | K200: 3_C_MSC_Rate_Rider_2 | L200: 2015-08-31
A201: General Service 50 to 4,999 kW | B201: Rate Rider for Recovery of Foregone Revenue – Fixed Charge – effective until April 30, 2013 | H201: $ | I201: 26.76 | K201: 3_C_MSC_Rate_Rider_3 | L201: 2013-04-30
A202: General Service 50 to 4,999 kW | B202: Rate Rider for Recovery of Foregone Revenue – Volumetric Charge – effective until April 30, 2013 | H202: $/kW | I202: 0.1134 | K202: 3_C_VC_Rate_Rider_kW_1 | L202: 2013-04-30
A203: General Service 50 to 4,999 kW | B203: Rider for Global Adjustment Sub-Account Disposition (2012) – effective until April 30, 2016 Applicable only for Non-RPP Customers | H203: $/kW | I203: 0.141 | K203: 3_C_VC_Rate_Rider_kW_2 | L203: 2016-04-30
A204: General Service 50 to 4,999 kW | B204: Rate Rider for Deferral/Variance Account Disposition (2012) – effective until April 30, 2016 | H204: $/kW | I204: 0.1984 | K204: 3_C_VC_Rate_Rider_kW_3 | L204: 2016-04-30
A205: General Service 50 to 4,999 kW | B205: MONTHLY RATES AND CHARGES - Regulatory Component
A206: General Service 50 to 4,999 kW
A207: General Service 50 to 4,999 kW | B207: Wholesale Market Service Rate | H207: $/kWh | I207: 0.0052 | K207: 3_C_WMSR
A208: General Service 50 to 4,999 kW | B208: Rural Rate Protection Charge - effective until April 30, 2012 | H208: $/kWh | I208: 0.0013 | K208: 3_C_RRPC_untilApril302012 | L208: 2012-04-30
A209: General Service 50 to 4,999 kW | B209: Rural Rate Protection Charge - effective on and after May 1, 2012 | H209: $/kWh | I209: 0.0011 | K209: 3_C_RRPC_AfterMay12012 | L209: 2012-05-01
A210: General Service 50 to 4,999 kW | B210: Standard Supply Service - Administrative Charge (if applicable) | H210: $ | I210: 0.25 | K210: 3_C_SSS
A213: Street Lighting | B213: Street Lighting Service Classification
A214: Street Lighting
A215: Street Lighting | B215: This classification applies to an account for roadway lighting with a Municipality, Regional Municipality, Ministry of Transportation and private roadway lighting, controlled by photo cells. The consumption for these customers will be based on the calculated connected load times the required lighting times established in the approved OEB street lighting load shape template. Further servicing details are available in the distributor’s Conditions of Service.
... 113 more rows

Sheet 4. Hidden (hidden)
M1: Current Rate Classes | N1: Changed to Rate Classes | O1: Values in A that are NOT in B | P1: Values in B that are Not in A | Q1: Count of A | R1: Count of B
M2: Residential | N2: Residential | Q2: 5 | R2: 5
M3: General Service Less Than 50 kW | N3: General Service Less Than 50 kW
M4: General Service 50 to 4,999 kW | N4: General Service 50 to 4,999 kW
M5: Street Lighting | N5: Street Lighting
M6: MicroFit | N6: MicroFit
A24: Residential - Time of Use | B24: Residential - Time of Use Service Classification
A25: Residential - Time of Use
A26: Residential - Time of Use | B26: This classification applies to an account taking electricity at 750 volts or less where the electricity is used exclusively in a separate metered living accommodation. Customers shall be residing in single-dwelling units that consist of a detached house or one unit of a semi-detached, duplex, triplex or quadruplex house, with a residential zoning. Separately metered dwellings within a town house complex or apartment building also
A27: Residential - Time of Use
A28: Residential - Time of Use
A29: Residential - Time of Use
A30: Residential - Time of Use
A31: Residential - Time of Use
A32: Residential - Time of Use | B32: APPLICATION
A33: Residential - Time of Use
A34: Residential - Time of Use | B34: The application of these rates and charges shall be in accordance with the Licence of the Distributor and any Code or Order of the Board, and amendments thereto as approved by the Board, which may be applicable to the administration of this schedule.
A35: Residential - Time of Use
A36: Residential - Time of Use
A37: Residential - Time of Use | B37: No rates and charges for the distribution of electricity and charges to meet the costs of any work or service done or furnished for the purpose of the distribution of electricity shall be made except as permitted by this schedule, unless required by the Distributor’s Licence or a Code or Order of the Board, and amendments thereto as approved by the Board, or as specified herein.
A38: Residential - Time of Use
A39: Residential - Time of Use
A40: Residential - Time of Use
A41: Residential - Time of Use | B41: Unless specifically noted, this schedule does not contain any charges for the electricity commodity, be it under the Regulated Price Plan, a contract with a retailer or the wholesale market price, as applicable.
A42: Residential - Time of Use
A43: Residential - Time of Use
A44: Residential - Time of Use | B44: It should be noted that this schedule does not list any charges or assessments that are required by law to be charged by a distributor and that are not subject to Board approval, such as the Debt Retirement Charge, charges for Ministry of Energy Conservation and Renewable Energy Program, the Provincial Benefit and any applicable taxes.
A45: Residential - Time of Use
A46: Residential - Time of Use
A47: Residential - Time of Use
A48: Residential - Time of Use | B48: MONTHLY RATES AND CHARGES - Delivery Component (If applicable, Effective Date MUST be included in rate description)
A49: Residential - Time of Use | B49: Service Charge | H49: $ | I49: 33.99
A50: Residential - Time of Use | B50: Distribution Volumetric Rate | H50: $/kWh | I50: 0.0134
A51: Residential - Time of Use | B51: Retail Transmission Rate - Network Service Rate | H51: $/kWh | I51: 0.0063
A52: Residential - Time of Use | B52: Retail Transmission Rate - Line Connection Service Rate | H52: $/kWh | I52: 0.0037
A53: Residential - Time of Use
A54: Residential - Time of Use
A55: Residential - Time of Use
A56: Residential - Time of Use
A57: Residential - Time of Use
A58: Residential - Time of Use
A59: Residential - Time of Use
A60: Residential - Time of Use
A61: Residential - Time of Use
A62: Residential - Time of Use
A63: Residential - Time of Use
A64: Residential - Time of Use
A65: Residential - Time of Use
A66: Residential - Time of Use
A67: Residential - Time of Use
A68: Residential - Time of Use
A69: Residential - Time of Use
A70: Residential - Time of Use
A71: Residential - Time of Use
A72: Residential - Time of Use
A73: Residential - Time of Use | B73: Smart Meter Cost Recovery Rider - effective until August 31, 2015 | H73: $ | I73: 0.48
A74: Residential - Time of Use | B74: Stranded Meter Rate Rider - effective until August 31, 2015 | H74: $ | I74: 0.39
A75: Residential - Time of Use | B75: Foregone Revenue Rate Rider - Fixed - effective until April 30, 2013 | H75: $ | I75: 0.85
A76: Residential - Time of Use | B76: Foregone Revenue Rate Rider - Volumetric - effective until April 30, 2013 | H76: $/kWh | I76: 0.0003
A77: Residential - Time of Use | B77: Rate Rider for Global Adjustment Sub-Account Disposition (2012) – effective until April 30, 2016 Applicable only for Non-RPP Customers | H77: $/kWh | I77: 0.0004
A78: Residential - Time of Use | B78: Rate Rider for Deferral/Variance Account Disposition (2012) – effective until April 30, 2016 | H78: $/kWh | I78: 0.0009
A79: Residential - Time of Use | B79: MONTHLY RATES AND CHARGES - Regulatory Component
A80: Residential - Time of Use
A81: Residential - Time of Use | B81: Wholesale Market Service Rate | H81: $/kWh | I81: 0.0052
A82: Residential - Time of Use | B82: Rural Rate Protection Charge - effective until April 30, 2012 | H82: $/kWh | I82: 0.0013
A83: Residential - Time of Use | B83: Rural Rate Protection Charge - effective on and after May 1, 2012 | H83: $/kWh | I83: 0.0011
A84: Residential - Time of Use | B84: Standard Supply Service - Administrative Charge (if applicable) | H84: $ | I84: 0.25
A87: General Service Less Than 50 kW | B87: General Service Less Than 50 kW Service Classification
A88: General Service Less Than 50 kW
A89: General Service Less Than 50 kW | B89: This classification applies to a non residential account taking electricity at 750 volts or less whose average monthly maximum demand is less than, or is forecast to be less than, 50 kW. Further servicing details are available in the distributor’s Conditions of Service.
A90: General Service Less Than 50 kW
A91: General Service Less Than 50 kW
A92: General Service Less Than 50 kW
A93: General Service Less Than 50 kW
A94: General Service Less Than 50 kW
A95: General Service Less Than 50 kW | B95: APPLICATION
A96: General Service Less Than 50 kW
A97: General Service Less Than 50 kW | B97: The application of these rates and charges shall be in accordance with the Licence of the Distributor and any Code or Order of the Board, and amendments thereto as approved by the Board, which may be applicable to the administration of this schedule.
A98: General Service Less Than 50 kW
A99: General Service Less Than 50 kW
A100: General Service Less Than 50 kW | B100: No rates and charges for the distribution of electricity and charges to meet the costs of any work or service done or furnished for the purpose of the distribution of electricity shall be made except as permitted by this schedule, unless required by the Distributor’s Licence or a Code or Order of the Board, and amendments thereto as approved by the Board, or as specified herein.
A101: General Service Less Than 50 kW
A102: General Service Less Than 50 kW
A103: General Service Less Than 50 kW
A104: General Service Less Than 50 kW | B104: Unless specifically noted, this schedule does not contain any charges for the electricity commodity, be it under the Regulated Price Plan, a contract with a retailer or the wholesale market price, as applicable.
A105: General Service Less Than 50 kW
A106: General Service Less Than 50 kW
A107: General Service Less Than 50 kW | B107: It should be noted that this schedule does not list any charges, assessments or credits that are required by law to be invoiced by a distributor and that are not subject to Board approval, such as the Debt Retirement Charge, the Global Adjustment, the Ontario Clean Energy Benefit and the HST.
A108: General Service Less Than 50 kW
A109: General Service Less Than 50 kW
A110: General Service Less Than 50 kW
A111: General Service Less Than 50 kW | B111: MONTHLY RATES AND CHARGES - Delivery Component (If applicable, Effective Date MUST be included in rate description)
A112: General Service Less Than 50 kW | B112: Service Charge | H112: $ | I112: 74.07
A113: General Service Less Than 50 kW | B113: Distribution Volumetric Rate | H113: $/kWh | I113: 0.0094
A114: General Service Less Than 50 kW | B114: Retail Transmission Rate - Network Service Rate | H114: $/kWh | I114: 0.0056
A115: General Service Less Than 50 kW | B115: Retail Transmission Rate - Transformation Connection Service Rate | H115: $/kWh | I115: 0.0032
A116: General Service Less Than 50 kW
A117: General Service Less Than 50 kW
A118: General Service Less Than 50 kW
A119: General Service Less Than 50 kW
A120: General Service Less Than 50 kW
A121: General Service Less Than 50 kW
A122: General Service Less Than 50 kW
A123: General Service Less Than 50 kW
A124: General Service Less Than 50 kW
A125: General Service Less Than 50 kW
A126: General Service Less Than 50 kW
A127: General Service Less Than 50 kW
A128: General Service Less Than 50 kW
A129: General Service Less Than 50 kW
A130: General Service Less Than 50 kW
A131: General Service Less Than 50 kW
A132: General Service Less Than 50 kW
A133: General Service Less Than 50 kW
A134: General Service Less Than 50 kW
A135: General Service Less Than 50 kW
A136: General Service Less Than 50 kW | B136: Smart Meter Cost Recovery Rider - effective until August 31, 2015 | H136: $ | I136: 0.78
A137: General Service Less Than 50 kW | B137: Stranded Meter Rate Rider - effective until August 31, 2015 | H137: $ | I137: 0.39
A138: General Service Less Than 50 kW | B138: Foregone Revenue Rate Rider - Fixed - effective until April 30, 2013 | H138: $ | I138: 1.01
A139: General Service Less Than 50 kW | B139: Foregone Revenue Rate Rider - Volumetric - effective until April 30, 2013 | H139: $/kWh | I139: 0.0001
A140: General Service Less Than 50 kW | B140: Rate Rider for Global Adjustment Sub-Account Disposition (2012) – effective until April 30, 2016 Applicable only for Non-RPP Customers | H140: $/kWh | I140: 0.0004
A141: General Service Less Than 50 kW | B141: Rate Rider for Deferral/Variance Account Disposition (2012) – effective until April 30, 2016 | H141: $/kWh | I141: 0.0007
A142: General Service Less Than 50 kW | B142: MONTHLY RATES AND CHARGES - Regulatory Component
A143: General Service Less Than 50 kW
A144: General Service Less Than 50 kW | B144: Wholesale Market Service Rate | H144: =H81 -> $/kWh | I144: 0.0052
A145: General Service Less Than 50 kW | B145: Rural Rate Protection Charge - effective until April 30, 2012 | H145: $/kWh | I145: 0.0013
A146: General Service Less Than 50 kW | B146: Rural Rate Protection Charge - effective on and after May 1, 2012 | H146: $/kWh | I146: 0.0011
A147: General Service Less Than 50 kW | B147: Standard Supply Service - Administrative Charge (if applicable) | H147: $ | I147: 0.25
A150: General Service 50 to 4,999 kW | B150: General Service 50 to 4,999 kW Service Classification
A151: General Service 50 to 4,999 kW
A152: General Service 50 to 4,999 kW | B152: This classification applies to a non residential account whose average monthly maximum demand used for billing purposes is equal to or greater than, or is forecast to be equal to or greater than, 50 kW but less than 5,000 kW. Further servicing details are available in the distributor’s Conditions of Service.
A153: General Service 50 to 4,999 kW
A154: General Service 50 to 4,999 kW
A155: General Service 50 to 4,999 kW
A156: General Service 50 to 4,999 kW
A157: General Service 50 to 4,999 kW
A158: General Service 50 to 4,999 kW | B158: APPLICATION
A159: General Service 50 to 4,999 kW
A160: General Service 50 to 4,999 kW | B160: The application of these rates and charges shall be in accordance with the Licence of the Distributor and any Code or Order of the Board, and amendments thereto as approved by the Board, which may be applicable to the administration of this schedule.
A161: General Service 50 to 4,999 kW
A162: General Service 50 to 4,999 kW
A163: General Service 50 to 4,999 kW | B163: No rates and charges for the distribution of electricity and charges to meet the costs of any work or service done or furnished for the purpose of the distribution of electricity shall be made except as permitted by this schedule, unless required by the Distributor’s Licence or a Code or Order of the Board, and amendments thereto as approved by the Board, or as specified herein.
A164: General Service 50 to 4,999 kW
A165: General Service 50 to 4,999 kW
A166: General Service 50 to 4,999 kW
A167: General Service 50 to 4,999 kW | B167: Unless specifically noted, this schedule does not contain any charges for the electricity commodity, be it under the Regulated Price Plan, a contract with a retailer or the wholesale market price, as applicable.
A168: General Service 50 to 4,999 kW
A169: General Service 50 to 4,999 kW
A170: General Service 50 to 4,999 kW | B170: It should be noted that this schedule does not list any charges or assessments that are required by law to be charged by a distributor and that are not subject to Board approval, such as the Debt Retirement Charge, charges for Ministry of Energy Conservation and Renewable Energy Program, the Provincial Benefit and any applicable taxes.
A171: General Service 50 to 4,999 kW
A172: General Service 50 to 4,999 kW
A173: General Service 50 to 4,999 kW
A174: General Service 50 to 4,999 kW | B174: MONTHLY RATES AND CHARGES - Delivery Component (If applicable, Effective Date MUST be included in rate description)
A175: General Service 50 to 4,999 kW | B175: Service Charge | H175: $ | I175: 547.77
A176: General Service 50 to 4,999 kW | B176: Distribution Volumetric Rate | H176: $/kW | I176: 2.1698
A177: General Service 50 to 4,999 kW | B177: Retail Transmission Rate - Network Service Rate | H177: $/kW | I177: 2.2668
A178: General Service 50 to 4,999 kW | B178: Retail Transmission Rate - Network Service Rate - Interval Metered | H178: $/kW | I178: 2.4048
A179: General Service 50 to 4,999 kW | B179: Retail Transmission Rate - Line and Transformation Connection Service Rate | H179: $/kW | I179: 1.2627
A180: General Service 50 to 4,999 kW | B180: Retail Transmission Rate - Line and Transformation Connection Service Rate - Interval Metered | H180: $/kW | I180: 1.3956
A181: General Service 50 to 4,999 kW
A182: General Service 50 to 4,999 kW
A183: General Service 50 to 4,999 kW
A184: General Service 50 to 4,999 kW
A185: General Service 50 to 4,999 kW
A186: General Service 50 to 4,999 kW
A187: General Service 50 to 4,999 kW
A188: General Service 50 to 4,999 kW
A189: General Service 50 to 4,999 kW
A190: General Service 50 to 4,999 kW
A191: General Service 50 to 4,999 kW
A192: General Service 50 to 4,999 kW
A193: General Service 50 to 4,999 kW
A194: General Service 50 to 4,999 kW
A195: General Service 50 to 4,999 kW
A196: General Service 50 to 4,999 kW
A197: General Service 50 to 4,999 kW
A198: General Service 50 to 4,999 kW
A199: General Service 50 to 4,999 kW | B199: Smart Meter Cost Recovery Rider – effective until August 31, 2015 | H199: $ | I199: 3.8
A200: General Service 50 to 4,999 kW | B200: Stranded Meter Rate Rider - effective until August 31, 2015 | H200: $ | I200: 0.39
A201: General Service 50 to 4,999 kW | B201: Rate Rider for Recovery of Foregone Revenue – Fixed Charge – effective until April 30, 2013 | H201: $ | I201: 26.76
A202: General Service 50 to 4,999 kW | B202: Rate Rider for Recovery of Foregone Revenue – Volumetric Charge – effective until April 30, 2013 | H202: $/kW | I202: 0.1134
A203: General Service 50 to 4,999 kW | B203: Rider for Global Adjustment Sub-Account Disposition (2012) – effective until April 30, 2016 Applicable only for Non-RPP Customers | H203: $/kW | I203: 0.141
A204: General Service 50 to 4,999 kW | B204: Rate Rider for Deferral/Variance Account Disposition (2012) – effective until April 30, 2016 | H204: $/kW | I204: 0.1984
A205: General Service 50 to 4,999 kW | B205: MONTHLY RATES AND CHARGES - Regulatory Component
A206: General Service 50 to 4,999 kW
A207: General Service 50 to 4,999 kW | B207: Wholesale Market Service Rate | H207: =H81 -> $/kWh | I207: 0.0052
A208: General Service 50 to 4,999 kW | B208: Rural Rate Protection Charge - effective until April 30, 2012 | H208: $/kWh | I208: 0.0013
A209: General Service 50 to 4,999 kW | B209: Rural Rate Protection Charge - effective on and after May 1, 2012 | H209: $/kWh | I209: 0.0011
A210: General Service 50 to 4,999 kW | B210: Standard Supply Service - Administrative Charge (if applicable) | H210: $ | I210: 0.25
A213: General Service 50 to 4,999 kW – Interval Metered | B213: General Service 50 to 4,999 kW – Interval Metered Service Classification
A214: General Service 50 to 4,999 kW – Interval Metered
A215: General Service 50 to 4,999 kW – Interval Metered | B215: This classification applies to a non residential account whose average monthly maximum demand used for billing purposes is equal to or greater than, or is forecast to be equal to or greater than, 50 kW but less than 5,000 kW. Further servicing details are available in the distributor’s Conditions of Service.
A216: General Service 50 to 4,999 kW – Interval Metered
A217: General Service 50 to 4,999 kW – Interval Metered
A218: General Service 50 to 4,999 kW – Interval Metered
A219: General Service 50 to 4,999 kW – Interval Metered
A220: General Service 50 to 4,999 kW – Interval Metered
A221: General Service 50 to 4,999 kW – Interval Metered | B221: APPLICATION
A222: General Service 50 to 4,999 kW – Interval Metered
A223: General Service 50 to 4,999 kW – Interval Metered | B223: The application of these rates and charges shall be in accordance with the Licence of the Distributor and any Code or Order of the Board, and amendments thereto as approved by the Board, which may be applicable to the administration of this schedule.
... 166 more rows

Sheet 5. 2013 Continuity Schedule
C15: Please complete the following continuity schedule for the following Deferral / Variance Accounts. Enter information into green cells only. If you have received approval to dispose of balances from prior years, the starting point for entries in the 2013 DVA schedule below will be the balance sheet date as per your G/L for which you received approval. For example, if in the 2012 EDR process (CoS or IRM) you received approval for the December 31, 2010 balances, the starting point for your entries below should be the adjustment column BF for principal and column BK for interest. This will allow for the correct starting point for the 2011 opening balance columns (for both principal and interest) without requiring entries dating back to the beginning of the continuity schedule ie: Jan 1, 2005. Please refer to the footnotes for further instructions.
E19: 2005 | O19: 2006 | Y19: 2007 | AI19: 2008 | AS19: 2009 | BC19: 2010 | BM19: 2011 | BZ19: 2012 | CD19: Projected Interest on Dec-31-11 Balances | CG19: 2.1.7 RRR
C20: Account Descriptions | D20: Account Number | E20: Opening Principal Amounts as of Jan-1-05 | F20: Transactions Debit / (Credit) during 2005 excluding interest and adjustments 2 | G20: Board-Approved Disposition during 2005 | H20: Adjustments during 2005 - other 2 | I20: Closing Principal Balance as of Dec-31-05 | J20: Opening Interest Amounts as of Jan-1-05 | K20: Interest Jan-1 to Dec-31-05 | L20: Board-Approved Disposition during 2005 | M20: Adjustments during 2005 - other 2 | N20: Closing Interest Amounts as of Dec-31-05 | O20: Opening Principal Amounts as of Jan-1-06 | P20: Transactions Debit / (Credit) during 2006 excluding interest and adjustments 2 | Q20: Board-Approved Disposition during 2006 | R20: Adjustments during 2006 - other 2 | S20: Closing Principal Balance as of Dec-31-06 | T20: Opening Interest Amounts as of Jan-1-06 | U20: Interest Jan-1 to Dec-31-06 | V20: Board-Approved Disposition during 2006 1 | W20: Adjustments during 2006 - other 2 | X20: Closing Interest Amounts as of Dec-31-06 | Y20: Opening Principal Amounts as of Jan-1-07 | Z20: Transactions Debit / (Credit) during 2007 excluding interest and adjustments 2 | AA20: Board-Approved Disposition during 2007 | AB20: Adjustments during 2007 - other 1 | AC20: Closing Principal Balance as of Dec-31-07 | AD20: Opening Interest Amounts as of Jan-1-07 | AE20: Interest Jan-1 to Dec-31-07 | AF20: Board-Approved Disposition during 2007 | AG20: Adjustments during 2007 - other 1 | AH20: Closing Interest Amounts as of Dec-31-07 | AI20: Opening Principal Amounts as of Jan-1-08 | AJ20: Transactions Debit / (Credit) during 2008 excluding interest and adjustments 2 | AK20: Board-Approved Disposition during 2008 | AL20: Adjustments during 2008 - other 1 | AM20: Closing Principal Balance as of Dec-31-08 | AN20: Opening Interest Amounts as of Jan-1-08 | AO20: Interest Jan-1 to Dec-31-08 | AP20: Board-Approved Disposition during 2008 | AQ20: Adjustments during 2008 - other 1 | AR20: Closing Interest Amounts as of Dec-31-08 | AS20: Opening Principal Amounts as of Jan-1-09 | AT20: Transactions Debit / (Credit) during 2009 excluding interest and adjustments 2 | AU20: Board-Approved Disposition during 2009 | AV20: Adjustments during 2009 - other 1 | AW20: Closing Principal Balance as of Dec-31-09 | AX20: Opening Interest Amounts as of Jan-1-09 | AY20: Interest Jan-1 to Dec-31-09 | AZ20: Board-Approved Disposition during 2009 | BA20: Adjustments during 2009 - other 1 | BB20: Closing Interest Amounts as of Dec-31-09 | BC20: Opening Principal Amounts as of Jan-1-10 | BD20: Transactions Debit / (Credit) during 2010 excluding interest and adjustments 2 | BE20: Board-Approved Disposition during 2010 | BF20: Adjustments during 2010 - other 1 | BG20: Closing Principal Balance as of Dec-31-10 | BH20: Opening Interest Amounts as of Jan-1-10 | BI20: Interest Jan-1 to Dec-31-10 | BJ20: Board-Approved Disposition during 2010 | BK20: Adjustments during 2010 - other 2 | BL20: Closing Interest Amounts as of Dec-31-10 | BM20: Opening Principal Amounts as of Jan-1-11 | BN20: Transactions Debit / (Credit) during 2011 excluding interest and adjustments 2 | BO20: Board-Approved Disposition during 2011 | BP20: Other 1 Adjustments during Q1 2011 | BQ20: Other 1 Adjustments during Q2 2011 | BR20: Other 1 Adjustments during Q3 2011 | BS20: Other 1 Adjustments during Q4 2011 | BT20: Closing Principal Balance as of Dec-31-11 | BU20: Opening Interest Amounts as of Jan-1-11 | BV20: Interest Jan-1 to Dec-31-11 | BW20: Board-Approved Disposition during 2011 | BX20: Adjustments during 2011 - other 1 | BY20: Closing Interest Amounts as of Dec-31-11 | BZ20: Principal Disposition during 2012 - instructed by Board | CA20: Interest Disposition during 2012 - instructed by Board | CB20: Closing Principal Balances as of Dec 31-11 Adjusted for Dispositions during 2012 | CC20: Closing Interest Balances as of Dec 31-11 Adjusted for Dispositions during 2012 | CD20: Projected Interest from Jan 1, 2012 to December 31, 2012 on Dec 31 -11 balance adjusted for disposition during 2012 3 | CE20: Projected Interest from January 1, 2013 to April 30, 2013 on Dec 31 -11 balance adjusted for disposition during 2012 3 | CF20: Total Claim | CG20: As of Dec 31-11 | CH20: Variance RRR vs. 2011 Balance (Principal + Interest)
CF22: Claim before Forecasted Transactions
C23: Group 1 Accounts
A24: 1 | C24: LV Variance Account | D24: 1550 | I24: =E24+F24-G24+H24 -> 0 | N24: =J24+K24-L24+M24 -> 0 | O24: =I24 -> 0 | S24: =O24+P24-Q24+R24 -> 0 | T24: =N24 -> 0 | X24: =T24+U24-V24+W24 -> 0 | Y24: =S24 -> 0 | AC24: =Y24+Z24-AA24+AB24 -> 0 | AD24: =X24 -> 0 | AH24: =AD24+AE24-AF24+AG24 -> 0 | AI24: =AC24 -> 0 | AM24: =AI24+AJ24-AK24+AL24 -> 0 | AN24: =AH24 -> 0 | AR24: =AN24+AO24-AP24+AQ24 -> 0 | AS24: =AM24 -> 0 | AW24: =AS24+AT24-AU24+AV24 -> 0 | AX24: =AR24 -> 0 | BB24: =AX24+AY24-AZ24+BA24 -> 0 | BC24: =AW24 -> 0 | BG24: =BC24+BD24-BE24+BF24 -> 0 | BH24: =BB24 -> 0 | BL24: =BH24+BI24-BJ24+BK24 -> 0 | BM24: =BG24 -> 0 | BT24: =BM24+BN24-BO24+SUM(BP24:BS24) -> 0 | BU24: =BL24 -> 0 | BY24: =BU24+BV24-BW24+BX24 -> 0 | CB24: =BT24-BZ24 -> 0 | CC24: =BY24-CA24 -> 0 | CD24: =CB24*1.47% -> 0 | CF24: =SUM(CB24:CE24) -> 0 | CH24: =CG24-SUM(BT24,BY24) -> 0
A25: 2 | C25: RSVA - Wholesale Market Service Charge | D25: 1580 | F25: 27551 | H25: 60473 | I25: 88024 | K25: 4315 | N25: =J25+K25-L25+M25 -> 4315 | O25: =I25 -> 88024 | P25: -102547.58 | S25: =O25+P25-Q25+R25 -> -14523.58 | T25: =N25 -> 4315 | U25: 4123.41 | X25: =T25+U25-V25+W25 -> 8438.41 | Y25: =S25 -> -14523.58 | Z25: -46858.96 | AC25: =Y25+Z25-AA25+AB25 -> -61382.54 | AD25: =X25 -> 8438.41 | AE25: -1266 | AH25: =AD25+AE25-AF25+AG25 -> 7172.41 | AI25: =AC25 -> -61382.54 | AJ25: -20255.26 | AM25: =AI25+AJ25-AK25+AL25 -> -81637.8 | AN25: =AH25 -> 7172.41 | AO25: -2760.51 | AR25: =AN25+AO25-AP25+AQ25 -> 4411.9 | AS25: =AM25 -> -81637.8 | AT25: 457.7 | AW25: =AS25+AT25-AU25+AV25 -> -81180.1 | AX25: =AR25 -> 4411.9 | AY25: -999 | BB25: =AX25+AY25-AZ25+BA25 -> 3412.9 | BC25: =AW25 -> -81180.1 | BD25: -21531 | BE25: -65776 | BG25: =BC25+BD25-BE25+SUM(BF25:BF25) -> -36935.1 | BH25: =BB25 -> 3412.9 | BI25: -724.34 | BJ25: -12312 | BL25: =BH25+BI25-BJ25+BK25 -> 15000.56 | BM25: =BG25 -> -36935.1 | BN25: -20828.96 | BT25: =BM25+BN25-BO25+SUM(BP25:BS25) -> -57764.06 | BU25: =BL25 -> 15000.56 | BV25: -657.27 | BX25: 749 | BY25: =BU25+BV25-BW25+BX25 -> 15092.29 | BZ25: -36935 | CA25: 14276 | CB25: =BT25-BZ25 -> -20829.06 | CC25: =BY25-CA25 -> 816.29 | CD25: -306.187182 | CE25: -102 | CF25: =SUM(CB25:CE25) -> -20420.95718 | CG25: -42675.47 | CH25: =CG25-SUM(BT25,BY25) -> -3.7
A26: 3 | C26: RSVA - Retail Transmission Network Charge | D26: 1584 | F26: -13408 | H26: -49430 | I26: -62838 | K26: -3610 | N26: -3610 | O26: -62838 | P26: 31649 | S26: -31189 | T26: -3610 | U26: -3308 | X26: -6918 | Y26: -31189 | Z26: 12418 | AC26: -18771 | AD26: -6918 | AE26: -1396 | AH26: -8314 | AI26: -18771 | AJ26: -25068 | AM26: -43839 | AN26: -8314 | AO26: -783 | AR26: -9097 | AS26: -43839 | AT26: 4278.74 | AW26: -39560.26 | AX26: -9097 | AY26: -438 | BB26: -9535 | BC26: -39560.26 | BD26: 4774 | BE26: -43059 | BG26: 8272.74 | BH26: -9535 | BI26: -305 | BJ26: -10442 | BL26: 602 | BM26: 8272.74 | BN26: -2298 | BT26: 5974.74 | BU26: 602 | BV26: 131 | BX26: -3830 | BY26: -3097 | BZ26: 8273 | CA26: 765 | CB26: -2298.26 | CC26: -3862 | CD26: -33.784422 | CE26: -11.33 | CF26: -6205.374422 | CG26: 2833.68 | CH26: -44.06
A27: 4 | C27: RSVA - Retail Transmission Connection Charge | D27: 1586 | F27: -72795 | H27: -220863 | I27: =E27+F27-G27+H27 -> -293658 | K27: -15444 | N27: -15444 | O27: -293658 | P27: 201130 | S27: -92528 | T27: -15444 | U27: -14770 | X27: -30214 | Y27: -92528 | Z27: 48441 | AC27: -44087 | AD27: -30214 | AE27: -3564 | AH27: -33778 | AI27: -44087 | AJ27: 28426 | AM27: -15661 | AN27: -33778 | AO27: -1121 | AR27: -34899 | AS27: -15661 | AT27: 22087 | AW27: 6426 | AX27: -34899 | AY27: 220 | BB27: -34679 | BC27: 6426 | BD27: 25161 | BE27: -3370 | BG27: 34957 | BH27: -34679 | BI27: 174 | BJ27: -47232 | BL27: 12727 | BM27: 34957 | BN27: 6549.58 | BT27: 41506.58 | BU27: 12727 | BV27: 723.67 | BX27: -22144 | BY27: -8693.33 | BZ27: 34957 | CA27: 13411 | CB27: 6549.58 | CC27: -22104.33 | CD27: 96.278826 | CE27: 32 | CF27: -15426.47117 | CG27: 32589.34 | CH27: -223.91
A28: 5 | C28: RSVA - Power (excluding Global Adjustment) | D28: 1588 | F28: 83353 | H28: 162483 | I28: 245836 | K28: 11340 | N28: 11340 | O28: 245836 | P28: -326045 | S28: -80209 | T28: 11340 | U28: 12866 | X28: 24206 | Y28: -80209 | Z28: -14382 | AC28: -94591 | AD28: 24206 | AE28: -4412 | AH28: 19794 | AI28: -94591 | AJ28: 30672 | AM28: -63919 | AN28: 19794 | AO28: -3950 | AR28: 15844 | AS28: -63919 | AT28: 128790 | AW28: 64871 | AX28: 15844 | AY28: 649 | BB28: 16493 | BC28: 64871 | BD28: 7722 | BE28: 78303 | BG28: -5710 | BH28: 16493 | BI28: 8745 | BJ28: 16871 | BL28: 8367 | BM28: -5710 | BN28: -11451.25 | BT28: -17161.25 | BU28: 8367 | BV28: -21.57 | BY28: 8345.43 | BZ28: -5710 | CA28: 8256 | CB28: -11451.25 | CC28: 89.43 | CD28: -168.333375 | CE28: -42 | CF28: -11572.15337 | CG28: -10120.47 | CH28: -1304.65
A29: 6 | C29: RSVA - Power - Sub-account - Global Adjustment | D29: 1588 | F29: -10118 | I29: -10118 | K29: -218 | N29: -218 | O29: -10118 | P29: -1308 | S29: -11426 | T29: -218 | U29: -468 | X29: -686 | Y29: -11426 | Z29: -6915 | AC29: -18341 | AD29: -686 | AE29: -568 | AH29: -1254 | AI29: -18341 | AJ29: 4956 | AM29: -13385 | AN29: -1254 | AO29: -717 | AR29: -1971 | AS29: -13385 | AT29: -17007 | AW29: -30392 | AX29: -1971 | AY29: -326 | BB29: -2297 | BC29: -30392 | BD29: 8935 | BE29: -31083 | BG29: 9626 | BH29: -2297 | BI29: -234 | BJ29: -2400 | BL29: -131 | BM29: 9626 | BN29: 50853.02 | BT29: 60479.02 | BU29: -131 | BV29: -253.69 | BY29: -384.69 | BZ29: 9626 | CA29: 59 | CB29: 50853.02 | CC29: -443.69 | CD29: 743.57 | CE29: 248 | CF29: 51400.9 | CG29: 60265.62 | CH29: 171.29
A30: 7 | C30: Recovery of Regulatory Asset Balances | D30: 1590 | F30: -40246 | I30: -40246 | K30: -3225 | N30: -3225 | O30: -40246 | P30: 44724 | Q30: -50753 | R30: -51577 | S30: 3654 | T30: -3225 | U30: -840 | V30: -825 | X30: -3240 | Y30: 3654 | Z30: 675 | AC30: 4329 | AD30: -3240 | AE30: 215 | AH30: -3025 | AI30: 4329 | AJ30: -5153 | AM30: -824 | AN30: -3025 | AO30: 3850 | AR30: 825 | AS30: -824 | AT30: 1274 | AW30: =AS30+AT30-AU30+AV30 -> 450 | AX30: 825 | AY30: -626 | BB30: 199 | BC30: 450 | BE30: -824 | BG30: 1274 | BH30: 199 | BJ30: 814 | BL30: -615 | BM30: 1274 | BT30: 1274 | BU30: -615 | BV30: 0 | BY30: -615 | BZ30: 1274 | CA30: -640 | CB30: 0 | CC30: 25 | CD30: 0 | CF30: 25 | CG30: 0 | CH30: -659
A31: 8 | C31: Disposition and Recovery/Refund of Regulatory Balances (2008)5 | D31: 1595 | I31: 0 | N31: 0 | O31: =I31 -> 0 | S31: 0 | T31: =N31 -> 0 | X31: 0 | Y31: =S31 -> 0 | AC31: 0 | AD31: =X31 -> 0 | AH31: 0 | AI31: =AC31 -> 0 | AM31: 0 | AN31: =AH31 -> 0 | AR31: 0 | AS31: =AM31 -> 0 | AW31: 0 | AX31: =AR31 -> 0 | BB31: 0 | BC31: =AW31 -> 0 | BG31: 0 | BH31: =BB31 -> 0 | BL31: 0 | BM31: =BG31 -> 0 | BT31: 0 | BU31: =BL31 -> 0 | BY31: 0 | CB31: 0 | CC31: 0 | CD31: 0 | CE31: 0 | CF31: 0 | CH31: 0
A32: 9 | C32: Disposition and Recovery/Refund of Regulatory Balances (2009)5 | D32: 1595 | I32: 0 | N32: 0 | O32: 0 | S32: 0 | T32: 0 | X32: 0 | Y32: 0 | AC32: 0 | AD32: 0 | AH32: 0 | AI32: 0 | AM32: 0 | AN32: 0 | AR32: 0 | AS32: 0 | AW32: 0 | AX32: 0 | BB32: 0 | BC32: 0 | BG32: 0 | BH32: 0 | BL32: 0 | BM32: =BG32 -> 0 | BT32: 0 | BU32: =BL32 -> 0 | BY32: 0 | CB32: 0 | CC32: 0 | CD32: 0 | CE32: 0 | CF32: 0 | CH32: 0
A33: 9 | C33: Disposition and Recovery/Refund of Regulatory Balances (2010)5 | D33: 1595 | I33: =E33+F33-G33+H33 -> 0 | N33: =J33+K33-L33+M33 -> 0 | O33: =I33 -> 0 | S33: =O33+P33-Q33+R33 -> 0 | T33: =N33 -> 0 | X33: =T33+U33-V33+W33 -> 0 | Y33: =S33 -> 0 | AC33: =Y33+Z33-AA33+AB33 -> 0 | AD33: =X33 -> 0 | AH33: =AD33+AE33-AF33+AG33 -> 0 | AI33: =AC33 -> 0 | AM33: =AI33+AJ33-AK33+AL33 -> 0 | AN33: =AH33 -> 0 | AR33: =AN33+AO33-AP33+AQ33 -> 0 | AS33: =AM33 -> 0 | AW33: =AS33+AT33-AU33+AV33 -> 0 | AX33: =AR33 -> 0 | BB33: =AX33+AY33-AZ33+BA33 -> 0 | BC33: =AW33 -> 0 | BG33: 0 | BH33: =BB33 -> 0 | BL33: =BH33+BI33-BJ33+BK33 -> 0 | BM33: =BG33 -> 0 | BT33: =BM33+BN33-BO33+SUM(BP33:BS33) -> 0 | BU33: =BL33 -> 0 | BY33: =BU33+BV33-BW33+BX33 -> 0 | CB33: =BT33-BZ33 -> 0 | CC33: =BY33-CA33 -> 0 | CD33: =CB33*1.47%/12*6 -> 0 | CE33: 0 | CF33: 0 | CH33: =CG33-SUM(BT33,BY33) -> 0
C35: Group 1 Sub-Total (including Account 1588 - Global Adjustment) | E35: =SUM(E24:E33) -> 0 | F35: =SUM(F24:F33) -> -25663 | G35: 0 | H35: -47337 | I35: -73000 | J35: 0 | K35: -6842 | L35: 0 | M35: 0 | N35: -6842 | O35: -73000 | P35: -152397.58 | Q35: -50753 | R35: -51577 | S35: -226221.58 | T35: -6842 | U35: -2396.59 | V35: -825 | W35: 0 | X35: -8413.59 | Y35: -226221.58 | Z35: -6621.96 | AA35: 0 | AB35: 0 | AC35: -232843.54 | AD35: -8413.59 | AE35: -10991 | AF35: 0 | AG35: 0 | AH35: -19404.59 | AI35: -232843.54 | AJ35: 13577.74 | AK35: 0 | AL35: 0 | AM35: -219265.8 | AN35: -19404.59 | AO35: -5481.51 | AP35: 0 | AQ35: 0 | AR35: -24886.1 | AS35: -219265.8 | AT35: 139880.44 | AU35: 0 | AV35: 0 | AW35: -79385.36 | AX35: -24886.1 | AY35: -1520 | AZ35: 0 | BA35: 0 | BB35: -26406.1 | BC35: -79385.36 | BD35: 25061 | BE35: -65809 | BF35: 0 | BG35: 11484.64 | BH35: -26406.1 | BI35: 7655.66 | BJ35: -54701 | BK35: 0 | BL35: 35950.56 | BM35: 11484.64 | BN35: 22824.39 | BO35: 0 | BP35: 0 | BQ35: 0 | BR35: =SUM(BR24:BR33) -> 0 | BS35: 0 | BT35: 34309.03 | BU35: 35950.56 | BV35: -77.86 | BW35: 0 | BX35: -25225 | BY35: 10647.7 | BZ35: 11485 | CA35: 36127 | CB35: 22824.03 | CC35: -25479.3 | CD35: 331.543847 | CE35: 124.67 | CF35: -2199.056153 | CG35: 42892.7 | CH35: -2064.03
C36: Group 1 Sub-Total (excluding Account 1588 - Global Adjustment) | E36: =E35-E37 -> 0 | F36: =F35-F37 -> -15545 | G36: =G35-G37 -> 0 | H36: -47337 | I36: -62882 | J36: 0 | K36: -6624 | L36: =L35-L37 -> 0 | M36: =M35-M37 -> 0 | N36: -6624 | O36: -62882 | P36: -151089.58 | Q36: -50753 | R36: -51577 | S36: -214795.58 | T36: -6624 | U36: -1928.59 | V36: =V35-V37 -> -825 | W36: =W35-W37 -> 0 | X36: =X35-X37 -> -7727.59 | Y36: -214795.58 | Z36: 293.04 | AA36: 0 | AB36: 0 | AC36: -214502.54 | AD36: -7727.59 | AE36: -10423 | AF36: =AF35-AF37 -> 0 | AG36: =AG35-AG37 -> 0 | AH36: =AH35-AH37 -> -18150.59 | AI36: -214502.54 | AJ36: 8621.74 | AK36: 0 | AL36: 0 | AM36: -205880.8 | AN36: -18150.59 | AO36: -4764.51 | AP36: =AP35-AP37 -> 0 | AQ36: =AQ35-AQ37 -> 0 | AR36: =AR35-AR37 -> -22915.1 | AS36: -205880.8 | AT36: 156887.44 | AU36: 0 | AV36: 0 | AW36: -48993.36 | AX36: -22915.1 | AY36: -1194 | AZ36: =AZ35-AZ37 -> 0 | BA36: =BA35-BA37 -> 0 | BB36: =BB35-BB37 -> -24109.1 | BC36: -48993.36 | BD36: 16126 | BE36: -34726 | BF36: 0 | BG36: 1858.64 | BH36: -24109.1 | BI36: 7889.66 | BJ36: -52301 | BK36: 0 | BL36: 36081.56 | BM36: 1858.64 | BN36: -28028.63 | BO36: 0 | BP36: 0 | BQ36: 0 | BR36: 0 | BS36: =BS35-BS37 -> 0 | BT36: -26169.99 | BU36: 36081.56 | BV36: 175.83 | BW36: 0 | BX36: -25225 | BY36: 11032.39 | BZ36: 1859 | CA36: 36068 | CB36: -28028.99 | CC36: -25035.61 | CD36: -412.026153 | CE36: -123.33 | CF36: -53599.95615 | CG36: =CG35-CG37 -> -17372.92 | CH36: -2235.32
C37: =C29 -> RSVA - Power - Sub-account - Global Adjustment | D37: 1588 | E37: =E29 -> 0 | F37: =F29 -> -10118 | G37: =G29 -> 0 | H37: 0 | I37: -10118 | J37: 0 | K37: -218 | L37: =L29 -> 0 | M37: =M29 -> 0 | N37: -218 | O37: -10118 | P37: -1308 | Q37: 0 | R37: 0 | S37: -11426 | T37: -218 | U37: -468 | V37: 0 | W37: 0 | X37: -686 | Y37: -11426 | Z37: -6915 | AA37: 0 | AB37: 0 | AC37: -18341 | AD37: -686 | AE37: -568 | AF37: 0 | AG37: 0 | AH37: -1254 | AI37: -18341 | AJ37: 4956 | AK37: 0 | AL37: 0 | AM37: -13385 | AN37: -1254 | AO37: -717 | AP37: =AP29 -> 0 | AQ37: =AQ29 -> 0 | AR37: =AR29 -> -1971 | AS37: -13385 | AT37: -17007 | AU37: 0 | AV37: 0 | AW37: -30392 | AX37: -1971 | AY37: -326 | AZ37: 0 | BA37: 0 | BB37: -2297 | BC37: -30392 | BD37: 8935 | BE37: -31083 | BF37: 0 | BG37: 9626 | BH37: -2297 | BI37: -234 | BJ37: -2400 | BK37: 0 | BL37: -131 | BM37: 9626 | BN37: 50853.02 | BO37: 0 | BP37: 0 | BQ37: 0 | BR37: 0 | BS37: =BS29 -> 0 | BT37: 60479.02 | BU37: -131 | BV37: -253.69 | BW37: 0 | BX37: 0 | BY37: -384.69 | BZ37: 9626 | CA37: 59 | CB37: 50853.02 | CC37: -443.69 | CD37: 743.57 | CE37: 248 | CF37: 51400.9 | CG37: =CG29 -> 60265.62 | CH37: 171.29
A40: 31 | C40: Deferred Payments in Lieu of Taxes | D40: 1562 | I40: =E40+F40-G40+H40 -> 0 | N40: =J40+K40-L40+M40 -> 0 | O40: =I40 -> 0 | S40: =O40+P40-Q40+R40 -> 0 | T40: =N40 -> 0 | X40: =T40+U40-V40+W40 -> 0 | Y40: =S40 -> 0 | AC40: =Y40+Z40-AA40+AB40 -> 0 | AD40: =X40 -> 0 | AH40: =AD40+AE40-AF40+AG40 -> 0 | AI40: =AC40 -> 0 | AM40: =AI40+AJ40-AK40+AL40 -> 0 | AN40: =AH40 -> 0 | AR40: =AN40+AO40-AP40+AQ40 -> 0 | AS40: =AM40 -> 0 | AW40: =AS40+AT40-AU40+AV40 -> 0 | AX40: =AR40 -> 0 | BB40: =AX40+AY40-AZ40+BA40 -> 0 | BC40: =AW40 -> 0 | BG40: =BC40+BD40-BE40+SUM(BF40:BF40) -> 0 | BH40: =BB40 -> 0 | BL40: =BH40+BI40-BJ40+BK40 -> 0 | BM40: =BG40 -> 0 | BS40: 8222 | BT40: =BM40+BN40-BO40+SUM(BP40:BS40) -> 8222 | BU40: =BL40 -> 0 | BX40: 2260 | BY40: =BU40+BV40-BW40+BX40 -> 2260 | BZ40: 8222 | CA40: 2260 | CB40: =BT40-BZ40 -> 0 | CC40: =BY40-CA40 -> 0 | CD40: =CB40*1.47% -> 0 | CE40: =CC40*1.47% -> 0 | CF40: 0 | CG40: 0 | CH40: -10482
CH41: 0
C42: Total of Group 1 and Account 1562 | E42: =SUM(E40,E35) -> 0 | F42: =SUM(F40,F35) -> -25663 | G42: =SUM(G40,G35) -> 0 | H42: -47337 | I42: -73000 | J42: 0 | K42: -6842 | L42: 0 | M42: 0 | N42: -6842 | O42: -73000 | P42: -152397.58 | Q42: -50753 | R42: -51577 | S42: -226221.58 | T42: -6842 | U42: -2396.59 | V42: -825 | W42: 0 | X42: -8413.59 | Y42: -226221.58 | Z42: -6621.96 | AA42: 0 | AB42: 0 | AC42: -232843.54 | AD42: -8413.59 | AE42: -10991 | AF42: 0 | AG42: 0 | AH42: -19404.59 | AI42: -232843.54 | AJ42: 13577.74 | AK42: 0 | AL42: 0 | AM42: -219265.8 | AN42: -19404.59 | AO42: -5481.51 | AP42: 0 | AQ42: 0 | AR42: -24886.1 | AS42: -219265.8 | AT42: 139880.44 | AU42: 0 | AV42: 0 | AW42: -79385.36 | AX42: -24886.1 | AY42: -1520 | AZ42: 0 | BA42: 0 | BB42: -26406.1 | BC42: -79385.36 | BD42: 25061 | BE42: -65809 | BF42: 0 | BG42: 11484.64 | BH42: -26406.1 | BI42: 7655.66 | BJ42: -54701 | BK42: 0 | BL42: 35950.56 | BM42: 11484.64 | BN42: 22824.39 | BO42: 0 | BP42: 0 | BQ42: 0 | BR42: 0 | BS42: =SUM(BS40,BS35) -> 8222 | BT42: 42531.03 | BU42: 35950.56 | BV42: -77.86 | BW42: 0 | BX42: -22965 | BY42: 12907.7 | BZ42: 19707 | CA42: 38387 | CB42: 22824.03 | CC42: -25479.3 | CD42: 331.543847 | CE42: 124.67 | CF42: -2199.056153 | CG42: 42892.7 | CH42: -12546.03
A44: 34 | C44: Special Purpose Charge Assessment Variance Account4 | D44: 1521 | BD44: 5582 | BG44: =BC44+BD44-BE44+SUM(BF44:BF44) -> 5582 | BI44: 33 | BL44: =BH44+BI44-BJ44+BK44 -> 33 | BM44: =BG44 -> 5582 | BN44: -3989.55 | BT44: =BM44+BN44-BO44+SUM(BP44:BS44) -> 1592.45 | BU44: =BL44 -> 33 | BV44: 78 | BY44: =BU44+BV44-BW44+BX44 -> 111 | BZ44: 1592 | CA44: 138 | CB44: =BT44-BZ44 -> 0.45 | CC44: =BY44-CA44 -> -27 | CD44: 27 | CE44: =CC44*1.47% -> -0.3969 | CF44: 0.0531 | CG44: 1703.01 | CH44: -0.44
C46: LRAM Variance Account | D46: 1568 | BG46: =BC46+BD46-BE46+SUM(BF46:BF46) -> 0 | BL46: =BH46+BI46-BJ46+BK46 -> 0 | BM46: =BG46 -> 0 | BN46: 751.54 | BT46: =BM46+BN46-BO46+SUM(BP46:BS46) -> 751.54 | BU46: =BL46 -> 0 | BY46: =BU46+BV46-BW46+BX46 -> 0 | CB46: =BT46-BZ46 -> 751.54 | CC46: =BY46-CA46 -> 0 | CD46: 11.04 | CE46: 3.68 | CF46: =SUM(CB46:CE46) -> 766.26 | CG46: 0 | CH46: =CG46-SUM(BT46,BY46) -> -751.54
C48: Total including Accounts 1562, 1521 and 1568 | E48: =E44+E42+E46 -> 0 | F48: =F44+F42+F46 -> -25663 | G48: =G44+G42+G46 -> 0 | H48: -47337 | I48: -73000 | J48: 0 | K48: -6842 | L48: 0 | M48: 0 | N48: -6842 | O48: -73000 | P48: -152397.58 | Q48: -50753 | R48: -51577 | S48: -226221.58 | T48: -6842 | U48: -2396.59 | V48: -825 | W48: 0 | X48: -8413.59 | Y48: -226221.58 | Z48: -6621.96 | AA48: 0 | AB48: 0 | AC48: -232843.54 | AD48: -8413.59 | AE48: -10991 | AF48: 0 | AG48: 0 | AH48: -19404.59 | AI48: -232843.54 | AJ48: 13577.74 | AK48: 0 | AL48: 0 | AM48: -219265.8 | AN48: -19404.59 | AO48: -5481.51 | AP48: 0 | AQ48: 0 | AR48: -24886.1 | AS48: -219265.8 | AT48: 139880.44 | AU48: 0 | AV48: 0 | AW48: -79385.36 | AX48: -24886.1 | AY48: -1520 | AZ48: 0 | BA48: 0 | BB48: -26406.1 | BC48: -79385.36 | BD48: 30643 | BE48: -65809 | BF48: 0 | BG48: 17066.64 | BH48: -26406.1 | BI48: 7688.66 | BJ48: -54701 | BK48: 0 | BL48: 35983.56 | BM48: 17066.64 | BN48: 19586.38 | BO48: 0 | BP48: 0 | BQ48: 0 | BR48: 0 | BS48: =BS44+BS42+BS46 -> 8222 | BT48: 44875.02 | BU48: 35983.56 | BV48: 0.14 | BW48: 0 | BX48: -22965 | BY48: 13018.7 | BZ48: 21299 | CA48: 38525 | CB48: 23576.02 | CC48: -25506.3 | CD48: 369.583847 | CE48: 127.9531 | CF48: -1432.743053 | CG48: 44595.71 | CH48: -13298.01
C51: For all Board-Approved dispositions, please ensure that the disposition amount has the same sign (e.g: debit balances are to have a positive figure and credit balance are to have a negative figure) as per the related Board decision.
B54: 1 | C54: Please provide explanations for the nature of the adjustments. If the adjustment relates to previously Board Approved disposed balances, please provide amounts for adjustments and include supporting documentations.
B55: 2 | C55: For RSVA accounts only, report the net variance to the account during the year. For all other accounts, record the transactions during the year.
B56: 3 | C56: If the LDC’s 2013 rate year begins January 1, 2013, the projected interest is recorded from January 1, 2012 to December 31, 2012 on the December 31, 2011 balance adjusted for the disposed balances approved by the Board in the 2012 rate decision. If the LDC’s 2013 rate year begins May 1, 2013 the projected interest is recorded from January 1, 2012 to April 30, 2013 on the December 31, 2011 balance adjusted for the disposed balances approved by the Board in the 2012 rate decision.
B57: 4 | C57: Applicants that did not have the balance in Account 1521 cleared by the Board in the 2012 rate proceedings are expected to file to dispose of Account 1521 in the 2013 rate proceedings. No Account 1521 balance is to be filed for clearance in the 2013 rate proceedings for those distributors that had account 1521 cleared by the Board in the 2012 rate proceedings. In accordance with section 8 of the Special Purpose Charge (“SPC”) Regulation, Ontario Regulation 66/10, distributors were required to apply to the Board no later than April 15, 2012 for an order authorizing the distributor to clear the balance in Account 1521. As per the Board’s April 23, 2010 letter, the Board stated that it expected that requests for disposition of the balance in Account 1521 were to be addressed as part of the proceedings to set rates for the 2012 rate year, except in cases where this approach would result in non-compliance with the timeline set out in section 8 of the SPC Regulation.
B58: 5 | C58: Include Account 1595 as part of Group 1 accounts (lines 31, 32 and 33) for review and disposition if the recovery (or refund) period has been completed. If the recovery (or refund) period has not been completed, do not include the respective balance in Account 1595 for disposition at this time.

Sheet 6. Billing Det. for Def-Var
A13: In the green shaded cells, enter the most recent Board Approved volumetric forecast. If there is a material difference between the latest Board-approved volumetric forecast and the most recent 12-month actual volumetric data, use the most recent 12-month actual data. Do not enter data for the MicroFit class.
E15: Billed kWh for Non-RPP Customers | F15: Estimated kW for Non-RPP Customers | G15: Distribution Revenue 1 | H15: 1590 Recovery Share Proportion* | I15: 1595 Recovery Share Proportion (2008) 2 | J15: 1595 Recovery Share Proportion (2009) 2 | K15: 1595 Recovery Share Proportion (2010) 2 | L15: 1568 LRAM Variance Account Class Allocation ($ amounts)
A16: Rate Class | B16: Unit | C16: Metered kWh | D16: Metered kW
A17: Residential | B17: $/kWh | C17: 11113021 | F17: =IF(ISERROR(D17/C17*E17), 0, D17/C17*E17) -> 0 | L17: 194.31
A18: General Service Less Than 50 kW | B18: $/kWh | C18: 6246087 | E18: 43364 | F18: =IF(ISERROR(D18/C18*E18), 0, D18/C18*E18) -> 0 | G18: 287448 | L18: 567.73
A19: General Service 50 to 4,999 kW | B19: $/kW | C19: 5218563 | D19: 13872 | E19: 3311465 | F19: =IF(ISERROR(D19/C19*E19), 0, D19/C19*E19) -> 8802.54631 | G19: 106909 | L19: 4.22
A20: Street Lighting | B20: $/kW | C20: 466493 | D20: 1316 | E20: 466493 | F20: =IF(ISERROR(D20/C20*E20), 0, D20/C20*E20) -> 1316 | G20: 84093
A21: MicroFit
B23: Total | C23: =SUM(C17:C21) -> 23044164 | D23: =SUM(D17:D21) -> 15188 | E23: 3821322 | F23: 10118.54631 | G23: 478450 | H23: 0 | I23: 0 | J23: 0 | K23: 0 | L23: 766.26
K24: Balance as per Sheet 5 | L24: ='5. 2013 Continuity Schedule'!CF46 -> 766.26
K25: Variance | L25: =L23-L24 -> 0
A27: Threshold Test
A28: Total Claim (including Account 1521, 1562 and 1568) | B28: ='5. 2013 Continuity Schedule'!CF48 -> -1432.743053
A29: Total Claim for Threshold Test (All Group 1 Accounts) | B29: ='5. 2013 Continuity Schedule'!CF35 -> -2199.056153
A30: Threshold Test (Total claim per kWh) 3 | B30: =IF(ISERROR(B29/C23), 0, B29/C23) -> -9.542789892e-05 | D30: =IF(AND(B30>-0.001,B30<0.001),"Claim does not meet the threshold test. If data has been entered on Sheet 5 for Accounts 1521 and 1562, the model will only dispose of Accounts 1521 and 1562.","") -> Claim does not meet the threshold test. If data has been entered on Sheet 5 for Accounts 1521 and 1562, the model will only dispose of Accounts 1521 and 1562.
A34: 1 For Account 1562, the allocation to customer classes should be performed on the basis of the test year distribution revenue allocation to customer classes found in the Applicant’s Cost of Service application that was most recently approved at the time of disposition of the 1562 account balances
A36: 2 Residual Account balance to be allocated to rate classes in proportion to the recovery share as established when rate riders were implemented.
A37: 3 The Threshold Test does not include the amount in 1521, 1562 nor 1568.

Sheet 6. hidden (hidden)
E1: Billed kWh for Non-RPP Customers | F1: Estimated kW for Non-RPP Customers | G1: Distribution Revenue 1 | H1: 1590 Recovery Share Proportion* | I1: 1595 Recovery Share Proportion (2008) 2 | J1: 1595 Recovery Share Proportion (2009) 2 | K1: 1595 Recovery Share Proportion (2010) 2 | L1: 1568 LRAM Variance Account Class Allocation
A2: Rate Class | B2: Unit | C2: Metered kWh | D2: Metered kW
A3: Residential | B3: $/kWh | C3: 11113021 | D3: 0 | E3: 0 | G3: 0 | H3: 0 | I3: 0 | J3: 0 | K3: 0 | L3: 194.31
A4: General Service Less Than 50 kW | B4: $/kWh | C4: 6246087 | D4: 0 | E4: 43364 | G4: 287448 | H4: 0 | I4: 0 | J4: 0 | K4: 0 | L4: 567.73
A5: General Service 50 to 4,999 kW | B5: $/kW | C5: 5218563 | D5: 13872 | E5: 3311465 | G5: 106909 | H5: 0 | I5: 0 | J5: 0 | K5: 0 | L5: 4.22
A6: Street Lighting | B6: $/kW | C6: 466493 | D6: 1316 | E6: 466493 | G6: 84093 | H6: 0 | I6: 0 | J6: 0 | K6: 0 | L6: 0
A7: MicroFit | B7: 0 | C7: 0 | D7: 0 | E7: 0 | G7: 0 | H7: 0 | I7: 0 | J7: 0 | K7: 0 | L7: 0

Sheet 7. Allocating Def-Var Balances
A13: No input required. This workshseet allocates the deferral/variance account balances (Group 1, 1521, 1588 GA, 1562 and 1568) to the appropriate classes as per the EDDVAR Report dated July 31, 2009
A15: Allocation of Group 1 Accounts (including Accounts 1521, 1562, 1568)
C16: % of Total kWh | D16: % of Total non-RPP kWh | E16: % of Total Distribution Revenue | M16: 1595 (2008) | N16: 1595 (2009) | O16: 1595 (2010) | P16: 1521 | Q16: 1562 | R16: 1568
A17: Rate Class | F17: 1550 | G17: 1580 | H17: 1584 | I17: 1586 | J17: 1588* | K17: 1588 GA | L17: 1590
A19: Residential | C19: =VLOOKUP(A19, '6. Billing Det. for Def-Var'!#REF!, 3,0)/'6. Billing Det. for Def-Var'!#REF! ->  | D19: =VLOOKUP(A19, '6. Billing Det. for Def-Var'!#REF!, 5,0)/'6. Billing Det. for Def-Var'!#REF! ->  | E19: =VLOOKUP(A19, '6. Billing Det. for Def-Var'!#REF!, 7,0)/'6. Billing Det. for Def-Var'!#REF! ->  | F19: 0 | G19: 0 | H19: 0 | I19: 0 | J19: 0 | K19: 0 | L19: 0 | M19: 0 | N19: 0 | O19: 0 | P19: =C19* '5. 2013 Continuity Schedule'!CF44 ->  | Q19: =E19* '5. 2013 Continuity Schedule'!CF40 ->  | R19: ='6. Billing Det. for Def-Var'!#REF! -> 
A20: General Service Less Than 50 kW | C20: =VLOOKUP(A20, '6. Billing Det. for Def-Var'!#REF!, 3,0)/'6. Billing Det. for Def-Var'!#REF! ->  | D20: =VLOOKUP(A20, '6. Billing Det. for Def-Var'!#REF!, 5,0)/'6. Billing Det. for Def-Var'!#REF! ->  | E20: =VLOOKUP(A20, '6. Billing Det. for Def-Var'!#REF!, 7,0)/'6. Billing Det. for Def-Var'!#REF! ->  | F20: 0 | G20: 0 | H20: 0 | I20: 0 | J20: 0 | K20: 0 | L20: 0 | M20: 0 | N20: 0 | O20: 0 | P20: =C20* '5. 2013 Continuity Schedule'!CF44 ->  | Q20: =E20* '5. 2013 Continuity Schedule'!CF40 ->  | R20: ='6. Billing Det. for Def-Var'!#REF! -> 
A21: General Service 50 to 4,999 kW | C21: =VLOOKUP(A21, '6. Billing Det. for Def-Var'!#REF!, 3,0)/'6. Billing Det. for Def-Var'!#REF! ->  | D21: =VLOOKUP(A21, '6. Billing Det. for Def-Var'!#REF!, 5,0)/'6. Billing Det. for Def-Var'!#REF! ->  | E21: =VLOOKUP(A21, '6. Billing Det. for Def-Var'!#REF!, 7,0)/'6. Billing Det. for Def-Var'!#REF! ->  | F21: 0 | G21: 0 | H21: 0 | I21: 0 | J21: 0 | K21: 0 | L21: 0 | M21: 0 | N21: 0 | O21: 0 | P21: =C21* '5. 2013 Continuity Schedule'!CF44 ->  | Q21: =E21* '5. 2013 Continuity Schedule'!CF40 ->  | R21: ='6. Billing Det. for Def-Var'!#REF! -> 
A22: Street Lighting | C22: =VLOOKUP(A22, '6. Billing Det. for Def-Var'!#REF!, 3,0)/'6. Billing Det. for Def-Var'!#REF! ->  | D22: =VLOOKUP(A22, '6. Billing Det. for Def-Var'!#REF!, 5,0)/'6. Billing Det. for Def-Var'!#REF! ->  | E22: =VLOOKUP(A22, '6. Billing Det. for Def-Var'!#REF!, 7,0)/'6. Billing Det. for Def-Var'!#REF! ->  | F22: 0 | G22: 0 | H22: 0 | I22: 0 | J22: 0 | K22: 0 | L22: 0 | M22: 0 | N22: 0 | O22: 0 | P22: =C22* '5. 2013 Continuity Schedule'!CF44 ->  | Q22: =E22* '5. 2013 Continuity Schedule'!CF40 ->  | R22: ='6. Billing Det. for Def-Var'!#REF! -> 
A23: MicroFit | C23: 0 | D23: 0 | E23: 0 | F23: 0 | G23: 0 | H23: 0 | I23: 0 | J23: 0 | K23: 0 | L23: 0 | M23: 0 | N23: 0 | O23: 0 | P23: =C23* '5. 2013 Continuity Schedule'!CF44 -> 0 | Q23: =E23* '5. 2013 Continuity Schedule'!CF40 -> 0 | R23: ='6. Billing Det. for Def-Var'!#REF! -> 
A25: Total | C25: =SUM(C19:C23) ->  | D25: =SUM(D19:D23) ->  | E25: =SUM(E19:E23) ->  | F25: =SUM(F19:F23) -> 0 | G25: =SUM(G19:G23) -> 0 | H25: =SUM(H19:H23) -> 0 | I25: =SUM(I19:I23) -> 0 | J25: =SUM(J19:J23) -> 0 | K25: =SUM(K19:K23) -> 0 | L25: =SUM(L19:L23) -> 0 | M25: =SUM(M19:M23) -> 0 | N25: =SUM(N19:N23) -> 0 | O25: =SUM(O19:O23) -> 0 | P25: =SUM(P19:P23) ->  | Q25: =SUM(Q19:Q23) ->  | R25: =SUM(R19:R23) -> 
A28: * RSVA - Power (Excluding Global Adjustment)

Sheet 8. Calculation of Def-Var RR
A12: Input required at cell C15 only. This workshseet calculates rate riders related to the Deferral/Variance Account Disposition (if applicable) and associated rate riders for the global adjustment sub-account. Rate Riders will not be generated for the MicroFit class.
A15: Please indicate the Rate Rider Recovery Period (in years) | C15: 1
E17: Balance of Accounts Allocated by kWh/kW (RPP) or Distribution Revenue | F17: Deferral/Variance Account Rate Rider | G17: Allocation of Balance in Account 1588 Global Adjustment Sub-Account | H17: Billed kWh or Estimated kW for Non-RPP Customers | I17: Global Adjustment Rate Rider
A18: Rate Class | B18: Unit | C18: Billed kWh | D18: Billed kW or kVA
A20: Residential | B20: $/kWh | C20: 11113021 | E20: =SUM('7. Allocating Def-Var Balances'!#REF!)+SUM('7. Allocating Def-Var Balances'!#REF!) ->  | F20: 0 | G20: 0 | I20: 0
A21: General Service Less Than 50 kW | B21: $/kWh | C21: 6246087 | E21: =SUM('7. Allocating Def-Var Balances'!#REF!)+SUM('7. Allocating Def-Var Balances'!#REF!) ->  | F21: 0.0001 | G21: 0 | H21: 43364 | I21: 0
A22: General Service 50 to 4,999 kW | B22: $/kW | C22: 5218563 | D22: 13872 | E22: =SUM('7. Allocating Def-Var Balances'!#REF!)+SUM('7. Allocating Def-Var Balances'!#REF!) ->  | F22: 0.0003 | G22: 0 | H22: 8802.54631 | I22: 0
A23: Street Lighting | B23: $/kW | C23: 466493 | D23: 1316 | E23: =SUM('7. Allocating Def-Var Balances'!#REF!)+SUM('7. Allocating Def-Var Balances'!#REF!) ->  | F23: 0 | G23: 0 | H23: 1316 | I23: 0
A24: MicroFit
A25: Total | C25: =SUM(C20:C24) -> 23044164 | D25: =SUM(D20:D24) -> 15188 | E25: =SUM(E20:E24) ->  | G25: =SUM(G20:G24) -> 0 | H25: =SUM(H20:H24) -> 53482.54631

Sheet 9. Rev2Cost_GDPIPI
Z1: 0
A12: If applicable, please enter any adjustments related to the revenue to cost ratio model into columns C and E. The Price Escalator has been set at the 2012 values and will be updated by Board staff. The Stretch Factor Value will also be updated by Board staff.
A15: Price Escalator | B15: 0.02 | C15: Choose Stretch Factor Group | E15: II
A16: Productivity Factor | B16: 0.0072 | C16: Associated Stretch Factor Value | E16: =IF(ISBLANK(E15)=TRUE, "", IF(E15="I", 0.002, IF(E15="II", 0.004, 0.006))) -> 0.004
A17: Price Cap Index | B17: =B15-B16-E16 -> 0.0088
B19: Current MFC | C19: MFC Adjustment from R/C Model | D19: Current Volumetric Charge | E19: DVR Adjustment from R/C Model | F19: Price Cap Index to be Applied to MFC and DVR | G19: Proposed MFC | H19: Proposed Volumetric Charge
A20: Rate Class
A22: Residential | B22: 33.99 | D22: 0.0134 | F22: =$B$17 -> 0.0088 | G22: =ROUND(SUM(B22,C22)*(1+F22),2) -> 34.29 | H22: =ROUND(SUM(D22,E22)*(1+F22),4) -> 0.0135
A23: General Service Less Than 50 kW | B23: 74.07 | D23: 0.0094 | F23: =$B$17 -> 0.0088 | G23: =ROUND(SUM(B23,C23)*(1+F23),2) -> 74.72 | H23: =ROUND(SUM(D23,E23)*(1+F23),4) -> 0.0095
A24: General Service 50 to 4,999 kW | B24: 547.77 | D24: 2.1698 | F24: =$B$17 -> 0.0088 | G24: =ROUND(SUM(B24,C24)*(1+F24),2) -> 552.59 | H24: =ROUND(SUM(D24,E24)*(1+F24),4) -> 2.1889
A25: Street Lighting | B25: 11.87 | D25: 14.6362 | F25: =$B$17 -> 0.0088 | G25: =ROUND(SUM(B25,C25)*(1+F25),2) -> 11.97 | H25: =ROUND(SUM(D25,E25)*(1+F25),4) -> 14.765
A26: MicroFit | B26: 5.25 | G26: =ROUND(SUM(B26,C26)*(1+F26),2) -> 5.25

Sheet 9. hidden (hidden)
A1: Rate Class | B1: MFC Adjustment from R/C Model | C1: DVR Adjustment from R/C Model
A2: Residential | B2: 0 | C2: 0
A3: General Service Less Than 50 kW | B3: 0 | C3: 0
A4: General Service 50 to 4,999 kW | B4: 0 | C4: 0
A5: Street Lighting | B5: 0 | C5: 0
A6: MicroFit | B6: 0 | C6: 0

Sheet 10. Other Charges & LF
A11: Please enter the following charges as found on your most recent Board-Approved Tariff Schedule. The standard Allowance rates have been included as default entries. If you have different rates, please make the appropriate corrections in the applicable cells below. As well, please enter the current Specific Service Charges below. The standard Retail Service Charges have been entered below. If you have different rates, please make the appropriate corrections in columns A, C or D as applicable (cells are unlocked).
C13: UNIT | D13: CURRENT
A15: ALLOWANCES
A17: Transformer Allowance for Ownership - per kW of billing demand/month | C17: $/kW | D17: -0.29
A20: Primary Metering Allowance for transformer losses – applied to measured demand and energy | C20: % | D20: -1
A22: SPECIFIC SERVICE CHARGES
A24: APPLICATION
A26: The application of these rates and charges shall be in accordance with the Licence of the Distributor and any Code or
A27: Order of the Board, and amendments thereto as approved by the Board, which may be applicable to the
A28: administration of this schedule
A30: No charges to meet the costs of any work or service done or furnished for the purpose of the distribution of electricity
A31: shall be made except as permitted by this schedule, unless required by the Distributor’s Licence or a Code or Order
A32: of the Board, and amendments thereto as approved by the Board, or as specified herein.
A34: It should be noted that this schedule does not list any charges, assessments, or credits that are required by law to be
A35: invoiced by a distributor and that are not subject to Board approval, such as the Debt Retirement Charge, charges for
A36: the Ministry of Energy Conservation and Renewable Energy Program, the Global Adjustment, the Ontario Clean
A37: Energy Benefit and the HST.
A39: Customer Administration
A41: Returned cheque (plus bank charges) | C41: $ | D41: 25
A42: Account set up charge/change of occupancy charge (plus credit agency costs if applicable) | C42: $ | D42: 25
A43: Special meter reads | C43: $ | D43: 25
A77: Non-Payment of Account
A79: Late Payment – per month | C79: % | D79: 1.5
A80: Late Payment – per annum | C80: % | D80: 19.56
A81: Collection of account charge – no disconnection | C81: $ | D81: 25
A82: Disconnect/Reconnect at meter – during regular hours | C82: $ | D82: 28
A83: Disconnect/Reconnect at meter – after regular hours | C83: $ | D83: 315
A84: Disconnect/Reconnect at pole – during regular hours | C84: $ | D84: 28
A85: Disconnect/Reconnect at pole – after regular hours | C85: $ | D85: 315
A86: Specific Charge for Access to the Power Poles - $/pole/year | C86: $ | D86: 22.35
A107: RETAIL SERVICE CHARGES (if applicable)
A109: The application of these rates and charges shall be in accordance with the Licence of the Distributor and any Code or
A110: Order of the Board, and amendments thereto as approved by the Board, which may be applicable to the
A111: administration of this schedule.
A113: No rates and charges for the distribution of electricity and charges to meet the costs of any work or service done or
A114: furnished for the purpose of the distribution of electricity shall be made except as permitted by this schedule, unless
A115: required by the Distributor’s Licence or a Code or Order of the Board, and amendments thereto as approved by the
A116: Board, or as specified herein.
A118: Unless specifically noted, this schedule does not contain any charges for the electricity commodity, be it under the
A119: Regulated Price Plan, a contract with a retailer or the wholesale market price, as applicable
A121: It should be noted that this schedule does not list any charges, assessments, or credits that are required by law to be
A122: invoiced by a distributor and that are not subject to Board approval, such as the Debt Retirement Charge, charges for
A123: the Ministry of Energy Conservation and Renewable Energy Program, the Global Adjustment, the Ontario Clean
A124: Energy Benefit and the HST.
A126: Retail Service Charges refer to services provided by a distributor to retailers or customers related
A127: to the supply of competitive electricity
A130: One-time charge, per retailer, to establish the service agreement between the distributor and the retailer | C130: $ | D130: 100
A131: Monthly Fixed Charge, per retailer | C131: $ | D131: 20
A132: Monthly Variable Charge, per customer, per retailer | C132: $/cust. | D132: 0.5
A133: Distributor-consolidated billing charge, per customer, per retailer | C133: $/cust. | D133: 0.3
A134: Retailer-consolidated billing credit, per customer, per retailer | C134: $/cust. | D134: -0.3
A135: Service Transaction Requests (STR)
A136: Request fee, per request, applied to the requesting party | C136: $ | D136: 0.25
A137: Processing fee, per request, applied to the requesting party | C137: $ | D137: 0.5
A138: Request for customer information as outlined in Section 10.6.3 and Chapter 11 of the Retail
A139: Settlement Code directly to retailers and customers, if not delivered electronically through the
A140: Electronic Business Transaction (EBT) system, applied to the requesting party
A141: Up to twice a year | C141: $ | D141: no charge
A142: More than twice a year, per request (plus incremental delivery costs) | C142: $ | D142: 2
A144: LOSS FACTORS
A146: If the distributor is not capable of prorating changed loss factors jointly with distribution rates, the revised loss factors
A147: will be implemented upon the first subsequent billing for each billing cycle.
A149: Total Loss Factor – Secondary Metered Customer < 5,000 kW | D149: 1.0778 | H149: TLF_Secondary_LT_5000kW
A150: Total Loss Factor – Primary Metered Customer < 5,000 kW | D150: 1.0671 | H150: TLF_Primary_LT_5000kW

Sheet 11. Proposed Rates
Y1: 0 | Z1: 3 | AA1: ≥
Z2: February
Z3: March
Z4: April
Z5: May
Z6: June
Z7: July
Z8: August
Z9: September
Z10: October
Z11: November
A12: Below is a listing of the proposed Monthly Fixed Charges, proposed Distribution Volumetric Rates, proposed Deferral and Variance account Rate Riders and all unexpired volumetric rates that were entered on Sheet 4. In the green cells (column A) below, please enter any additional rates being proposed (eg: LRAM/SSM, Tax Adjustments, etc). Please ensure that the word "Rider" or "Adder" is included in the description (as applicable). Note: All rates with expired effective dates have been removed. As well, the Current RTSR-Network and RTSR-Connection rate descriptions entered on Sheet 4 can be found below. The associated rates have been removed from this sheet, giving the applicant the opportunity to enter updated rates (from Sheet 13 in the Board-Approved RTSR model into the cells in column I. | Z12: December
A20: RESIDENTIAL SERVICE CLASSIFICATION
A21: MONTHLY RATES AND CHARGES - Delivery Component
A22: Service Charge | H22: $ | I22: 34.29 | K22: 1_P_MSC
A23: Distribution Volumetric Rate | H23: $/kWh | I23: 0.0135 | K23: 1_P_VC
A24: Rate Rider for Deferral/Variance Account Dispositon (2012)-effective until April 30, 2016 | H24: $/kWh | I24: 0.0009 | K24: 1_P_VC_Rate_Rider_kWh_1
A25: Retail Transmission Rate - Network Service Rate | H25: $/kWh | I25: 0.0064 | K25: 1_P_RTSR_Network
A26: Retail Transmission Rate - Line and Transformation Connection Service Rate | H26: $/kWh | I26: 0.0038 | K26: 1_P_RTSR_Connection
A27: Smart Meter Cost Recovery Rider-effective until August 31, 2015 | H27: $ | I27: 0.48 | K27: 1_P_MSC_Rate_Rider_1
A28: Stranded Meter Rate Rider-effective until August 31, 2015 | H28: $ | I28: 0.39 | K28: 1_P_MSC_Rate_Rider_2
A29: Rater Rider for Global Adjustment Sub-Account Disposition(2012)-effective until April 30, 2016. Applicable only for Non-RPP Customers | H29: $/kWh | I29: 0.0004 | K29: 1_P_VC_Rate_Rider_kWh_2
A48: MONTHLY RATES AND CHARGES - Regulatory Component
A49: Wholesale Market Service Rate | H49: $/kWh | I49: 0.0052 | K49: 1_P_WMSR
A50: Rural Rate Protection Charge | H50: $/kWh | I50: 0.0011 | K50: 1_P_RRPC
A51: Standard Supply Service - Administrative Charge (if applicable) | H51: $ | I51: 0.25 | K51: 1_P_SSS
A56: GENERAL SERVICE LESS THAN 50 KW SERVICE CLASSIFICATION
A57: MONTHLY RATES AND CHARGES - Delivery Component
A58: Service Charge | H58: $ | I58: 74.72 | K58: 2_P_MSC
A59: Distribution Volumetric Rate | H59: $/kWh | I59: 0.0095 | K59: 2_P_VC
A60: Rate Rider for Deferral/Variance Account Disposition (2012) – effective until April 30, 2016 | H60: $/kWh | I60: 0.0007 | K60: 2_P_VC_Rate_Rider_kWh_1
A61: Retail Transmission Rate - Network Service Rate | H61: $/kWh | I61: 0.0057 | K61: 2_P_RTSR_Network
A62: Retail Transmission Rate - Transformation Connection Service Rate | H62: $/kWh | I62: 0.0033 | K62: 2_P_RTSR_Transformer_Connection
A63: Smart Meter Cost Recovery Rider - effective until August 31, 2015 | H63: $ | I63: 0.78 | K63: 2_P_MSC_Rate_Rider_1
A64: Stranded Meter Rate Rider - effective until August 31, 2015 | H64: $ | I64: 0.39 | K64: 2_P_MSC_Rate_Rider_2
A65: Rate Rider for Global Adjustment Sub-Account Disposition (2012) – effective until April 30, 2016 Applicable only for Non-RPP Customers | H65: $/kWh | I65: 0.0004 | K65: 2_P_VC_GA_Rate_Rider_kWh_1
A84: MONTHLY RATES AND CHARGES - Regulatory Component
A85: Wholesale Market Service Rate | H85: $/kWh | I85: 0.0052 | K85: 2_P_WMSR
A86: Rural Rate Protection Charge | H86: $/kWh | I86: 0.0011 | K86: 2_P_RRPC
A87: Standard Supply Service - Administrative Charge (if applicable) | H87: $ | I87: 0.25 | K87: 2_P_SSS
A92: GENERAL SERVICE 50 TO 4,999 KW SERVICE CLASSIFICATION
A93: MONTHLY RATES AND CHARGES - Delivery Component
A94: Service Charge | H94: $ | I94: 552.59 | K94: 3_P_MSC
A95: Distribution Volumetric Rate | H95: $/kW | I95: 2.1889 | K95: 3_P_VC
A96: Rate Rider for Deferral/Variance Account Disposition (2012) – effective until April 30, 2016 | H96: $/kW | I96: 0.1984 | K96: 3_P_VC_Rate_Rider_kW_1
A97: Retail Transmission Rate - Network Service Rate | H97: $/kW | I97: 2.3141 | K97: 3_P_RTSR_Network
A98: Retail Transmission Rate - Network Service Rate - Interval Metered | H98: $/kW | I98: 2.455 | K98: 3_P_RTSR_Network_Interval
A99: Retail Transmission Rate - Line and Transformation Connection Service Rate | H99: $/kW | I99: 1.2851 | K99: 3_P_RTSR_Connection
A100: Retail Transmission Rate - Line and Transformation Connection Service Rate - Interval Metered | H100: $/kW | I100: 1.4204 | K100: 3_P_RTSR_Connection_Interval
A101: Smart Meter Cost Recovery Rider – effective until August 31, 2015 | H101: $ | I101: 3.8 | K101: 3_P_MSC_Rate_Rider_1
A102: Stranded Meter Rate Rider - effective until August 31, 2015 | H102: $ | I102: 0.39 | K102: 3_P_MSC_Rate_Rider_2
A103: Rider for Global Adjustment Sub-Account Disposition (2012) – effective until April 30, 2016 Applicable only for Non-RPP Customers | H103: $/kW | I103: 0.141 | K103: 3_P_VC_Rate_Rider_kW_2
A120: MONTHLY RATES AND CHARGES - Regulatory Component
A121: Wholesale Market Service Rate | H121: $/kWh | I121: 0.0052 | K121: 3_P_WMSR
A122: Rural Rate Protection Charge | H122: $/kWh | I122: 0.0011 | K122: 3_P_RRPC
A123: Standard Supply Service - Administrative Charge (if applicable) | H123: $ | I123: 0.25 | K123: 3_P_SSS
A128: STREET LIGHTING SERVICE CLASSIFICATION
A129: MONTHLY RATES AND CHARGES - Delivery Component
A130: Service Charge (per connection) | H130: $ | I130: 11.97 | K130: 4_P_MSC
A131: Distribution Volumetric Rate | H131: $/kW | I131: 14.765 | K131: 4_P_VC
A132: Rate Rider for Deferral/Variance Account Disposition (2012) – effective until April 30, 2016 | H132: $/kW | I132: 1.4517 | K132: 4_P_VC_Rate_Rider_kW_1
A133: Retail Transmission Rate - Network Service Rate | H133: $/kW | I133: 1.7454 | K133: 4_P_RTSR_Network
A134: Retail Transmission Rate - Line and Transformation Connection Service Rate | H134: $/kW | I134: 0.9933 | K134: 4_P_RTSR_Connection
A135: Rider for Global Adjustment Sub-Account Disposition (2012) – effective until April 30, 2016 Applicable only for Non-RPP Customers | H135: $/kW | I135: 0.1329 | K135: 4_P_VC_Rate_Rider_kW_2
A156: MONTHLY RATES AND CHARGES - Regulatory Component
A157: Wholesale Market Service Rate | H157: $/kWh | I157: 0.0052 | K157: 4_P_WMSR
A158: Rural Rate Protection Charge | H158: $/kWh | I158: 0.0011 | K158: 4_P_RRPC
A159: Standard Supply Service - Administrative Charge (if applicable) | H159: $ | I159: 0.25 | K159: 4_P_SSS
A164: MICROFIT SERVICE CLASSIFICATION
A165: MONTHLY RATES AND CHARGES - Delivery Component
A166: Service Charge | H166: $ | I166: 5.4 | K166: 5_P_MSC

Sheet 12. Summary Sheet
Y1: 3 | Z1: 3 | AA1: ≥
Z2: February
Z3: March
Z4: April
Z5: May
Z6: June
Z7: July
Z8: August
Z9: September
Z10: October
A11: The following table provides applicants with a class to class comparison of current vs. proposed rates. | Z11: November
Z12: December
A15: Current Rates | E15: Proposed Rates
A16: Rate Description | B16: Unit | C16: Amount | E16: Rate Description | F16: Unit | G16: Amount
A17: Residential | E17: Residential
A18: Service Charge | B18: $ | C18: 33.99 | E18: Service Charge | F18: $ | G18: 34.29
A19: Distribution Volumetric Rate | B19: $/kWh | C19: 0.0134 | E19: Distribution Volumetric Rate | F19: $/kWh | G19: 0.0135
A20: Retail Transmission Rate - Network Service Rate | B20: $/kWh | C20: 0.0063 | E20: Rate Rider for Deferral/Variance Account Dispositon (2012)-effective until April 30, 2016 | F20: $/kWh | G20: 0.0009
A21: Retail Transmission Rate - Line and Transformation Connection Service Rate | B21: $/kWh | C21: 0.0037 | E21: Retail Transmission Rate - Network Service Rate | F21: $/kWh | G21: 0.0064
A22: Smart Meter Cost Recovery Rider-effective until August 31, 2015 | B22: $ | C22: 0.48 | E22: Retail Transmission Rate - Line and Transformation Connection Service Rate | F22: $/kWh | G22: 0.0038
A23: Stranded Meter Rate Rider-effective until August 31, 2015 | B23: $ | C23: 0.39 | E23: Smart Meter Cost Recovery Rider-effective until August 31, 2015 | F23: $ | G23: 0.48
A24: Foregone Revenue Rate Rider-Fixed-effective until April 30, 2013 | B24: $ | C24: 0.85 | E24: Stranded Meter Rate Rider-effective until August 31, 2015 | F24: $ | G24: 0.39
A25: Foregone Revenue Rate Rider-Volumetric=effective until April 30, 2013 | B25: $/kWh | C25: 0.0003 | E25: Rater Rider for Global Adjustment Sub-Account Disposition(2012)-effective until April 30, 2016. Applicable only for Non-RPP Customers | F25: $/kWh | G25: 0.0004
A26: Rater Rider for Global Adjustment Sub-Account Disposition(2012)-effective until April 30, 2016. Applicable only for Non-RPP Customers | B26: $/kWh | C26: 0.0004 | E26: Wholesale Market Service Rate | F26: $/kWh | G26: 0.0052
A27: Rate Rider for Deferral/Variance Account Dispositon (2012)-effective until April 30, 2016 | B27: $/kWh | C27: 0.0009 | E27: Rural Rate Protection Charge | F27: $/kWh | G27: 0.0011
A28: Wholesale Market Service Rate | B28: $/kWh | C28: 0.0052 | E28: Standard Supply Service - Administrative Charge (if applicable) | F28: $ | G28: 0.25
A29: Rural Rate Protection Charge - effective until April 30, 2012 | B29: $/kWh | C29: 0.0013
A30: Rural Rate Protection Charge - effective on and after May 1, 2012 | B30: $/kWh | C30: 0.0011
A31: Standard Supply Service - Administrative Charge (if applicable) | B31: $ | C31: 0.25
A32: General Service Less Than 50 kW | E32: General Service Less Than 50 kW
A33: Service Charge | B33: $ | C33: 74.07 | E33: Service Charge | F33: $ | G33: 74.72
A34: Distribution Volumetric Rate | B34: $/kWh | C34: 0.0094 | E34: Distribution Volumetric Rate | F34: $/kWh | G34: 0.0095
A35: Retail Transmission Rate - Network Service Rate | B35: $/kWh | C35: 0.0056 | E35: Rate Rider for Deferral/Variance Account Disposition (2012) – effective until April 30, 2016 | F35: $/kWh | G35: 0.0007
A36: Retail Transmission Rate - Transformation Connection Service Rate | B36: $/kWh | C36: 0.0032 | E36: Retail Transmission Rate - Network Service Rate | F36: $/kWh | G36: 0.0057
A37: Smart Meter Cost Recovery Rider - effective until August 31, 2015 | B37: $ | C37: 0.78 | E37: Retail Transmission Rate - Transformation Connection Service Rate | F37: $/kWh | G37: 0.0033
A38: Stranded Meter Rate Rider - effective until August 31, 2015 | B38: $ | C38: 0.39 | E38: Smart Meter Cost Recovery Rider - effective until August 31, 2015 | F38: $ | G38: 0.78
A39: Foregone Revenue Rate Rider - Fixed - effective until April 30, 2013 | B39: $ | C39: 1.01 | E39: Stranded Meter Rate Rider - effective until August 31, 2015 | F39: $ | G39: 0.39
A40: Foregone Revenue Rate Rider - Volumetric - effective until April 30, 2013 | B40: $/kWh | C40: 0.0001 | E40: Rate Rider for Global Adjustment Sub-Account Disposition (2012) – effective until April 30, 2016 Applicable only for Non-RPP Customers | F40: $/kWh | G40: 0.0004
A41: Rate Rider for Global Adjustment Sub-Account Disposition (2012) – effective until April 30, 2016 Applicable only for Non-RPP Customers | B41: $/kWh | C41: 0.0004 | E41: Wholesale Market Service Rate | F41: $/kWh | G41: 0.0052
A42: Rate Rider for Deferral/Variance Account Disposition (2012) – effective until April 30, 2016 | B42: $/kWh | C42: 0.0007 | E42: Rural Rate Protection Charge | F42: $/kWh | G42: 0.0011
A43: Wholesale Market Service Rate | B43: $/kWh | C43: 0.0052 | E43: Standard Supply Service - Administrative Charge (if applicable) | F43: $ | G43: 0.25
A44: Rural Rate Protection Charge - effective until April 30, 2012 | B44: $/kWh | C44: 0.0013
A45: Rural Rate Protection Charge - effective on and after May 1, 2012 | B45: $/kWh | C45: 0.0011
A46: Standard Supply Service - Administrative Charge (if applicable) | B46: $ | C46: 0.25
A47: General Service 50 to 4,999 kW | E47: General Service 50 to 4,999 kW
A48: Service Charge | B48: $ | C48: 547.77 | E48: Service Charge | F48: $ | G48: 552.59
A49: Distribution Volumetric Rate | B49: $/kW | C49: 2.1698 | E49: Distribution Volumetric Rate | F49: $/kW | G49: 2.1889
A50: Retail Transmission Rate - Network Service Rate | B50: $/kW | C50: 2.2668 | E50: Rate Rider for Deferral/Variance Account Disposition (2012) – effective until April 30, 2016 | F50: $/kW | G50: 0.1984
A51: Retail Transmission Rate - Network Service Rate - Interval Metered | B51: $/kW | C51: 2.4048 | E51: Retail Transmission Rate - Network Service Rate | F51: $/kW | G51: 2.3141
A52: Retail Transmission Rate - Line and Transformation Connection Service Rate | B52: $/kW | C52: 1.2627 | E52: Retail Transmission Rate - Network Service Rate - Interval Metered | F52: $/kW | G52: 2.455
A53: Retail Transmission Rate - Line and Transformation Connection Service Rate - Interval Metered | B53: $/kW | C53: 1.3956 | E53: Retail Transmission Rate - Line and Transformation Connection Service Rate | F53: $/kW | G53: 1.2851
A54: Smart Meter Cost Recovery Rider – effective until August 31, 2015 | B54: $ | C54: 3.8 | E54: Retail Transmission Rate - Line and Transformation Connection Service Rate - Interval Metered | F54: $/kW | G54: 1.4204
A55: Stranded Meter Rate Rider - effective until August 31, 2015 | B55: $ | C55: 0.39 | E55: Smart Meter Cost Recovery Rider – effective until August 31, 2015 | F55: $ | G55: 3.8
A56: Rate Rider for Recovery of Foregone Revenue – Fixed Charge – effective until April 30, 2013 | B56: $ | C56: 26.76 | E56: Stranded Meter Rate Rider - effective until August 31, 2015 | F56: $ | G56: 0.39
A57: Rate Rider for Recovery of Foregone Revenue – Volumetric Charge – effective until April 30, 2013 | B57: $/kW | C57: 0.1134 | E57: Rider for Global Adjustment Sub-Account Disposition (2012) – effective until April 30, 2016 Applicable only for Non-RPP Customers | F57: $/kW | G57: 0.141
A58: Rider for Global Adjustment Sub-Account Disposition (2012) – effective until April 30, 2016 Applicable only for Non-RPP Customers | B58: $/kW | C58: 0.141 | E58: Wholesale Market Service Rate | F58: $/kWh | G58: 0.0052
A59: Rate Rider for Deferral/Variance Account Disposition (2012) – effective until April 30, 2016 | B59: $/kW | C59: 0.1984 | E59: Rural Rate Protection Charge | F59: $/kWh | G59: 0.0011
A60: Wholesale Market Service Rate | B60: $/kWh | C60: 0.0052 | E60: Standard Supply Service - Administrative Charge (if applicable) | F60: $ | G60: 0.25
A61: Rural Rate Protection Charge - effective until April 30, 2012 | B61: $/kWh | C61: 0.0013
A62: Rural Rate Protection Charge - effective on and after May 1, 2012 | B62: $/kWh | C62: 0.0011
A63: Standard Supply Service - Administrative Charge (if applicable) | B63: $ | C63: 0.25
A64: Street Lighting | E64: Street Lighting
A65: Service Charge (per connection) | B65: $ | C65: 11.87 | E65: Service Charge (per connection) | F65: $ | G65: 11.97
A66: Distribution Volumetric Rate | B66: $/kW | C66: 14.6362 | E66: Distribution Volumetric Rate | F66: $/kW | G66: 14.765
A67: Retail Transmission Rate - Network Service Rate | B67: $/kW | C67: 1.7097 | E67: Rate Rider for Deferral/Variance Account Disposition (2012) – effective until April 30, 2016 | F67: $/kW | G67: 1.4517
A68: Retail Transmission Rate - Line and Transformation Connection Service Rate | B68: $/kW | C68: 0.976 | E68: Retail Transmission Rate - Network Service Rate | F68: $/kW | G68: 1.7454
A69: Rate Rider for Recovery of Foregone Revenue – Fixed Charge – effective until April 30, 2013 | B69: $ | C69: 0.93 | E69: Retail Transmission Rate - Line and Transformation Connection Service Rate | F69: $/kW | G69: 0.9933
A70: Rate Rider for Recovery of Foregone Revenue – Volumetric Charge – effective until April 30, 2013 | B70: $/kW | C70: 1.1524 | E70: Rider for Global Adjustment Sub-Account Disposition (2012) – effective until April 30, 2016 Applicable only for Non-RPP Customers | F70: $/kW | G70: 0.1329
A71: Rider for Global Adjustment Sub-Account Disposition (2012) – effective until April 30, 2016 Applicable only for Non-RPP Customers | B71: $/kW | C71: 0.1329 | E71: Wholesale Market Service Rate | F71: $/kWh | G71: 0.0052
A72: Rate Rider for Deferral/Variance Account Disposition (2012) – effective until April 30, 2016 | B72: $/kW | C72: 1.4517 | E72: Rural Rate Protection Charge | F72: $/kWh | G72: 0.0011
A73: Wholesale Market Service Rate | B73: $/kWh | C73: 0.0052 | E73: Standard Supply Service - Administrative Charge (if applicable) | F73: $ | G73: 0.25
A74: Rural Rate Protection Charge - effective until April 30, 2012 | B74: $/kWh | C74: 0.0013
A75: Rural Rate Protection Charge - effective on and after May 1, 2012 | B75: $/kWh | C75: 0.0011
A76: Standard Supply Service - Administrative Charge (if applicable) | B76: $ | C76: 0.25
A77: MicroFit | E77: MicroFit
A78: Service Charge | B78: $ | C78: 5.25 | E78: Service Charge | F78: $ | G78: 5.4

Sheet 13. Final Tariff Schedule
Y1: 3 | Z1: 3 | AA1: ≥
Z2: February
Z3: March
Z4: April
Z5: May
Z6: June
Z7: July
Z8: August
Z9: September
Z10: October
Z11: November
A12: The following is a complete Tariff Schedule based on the information entered in this model. Please review. Note: This worksheet is unlocked and the print margins, row heights, number formats, etc. can be adjusted. | Z12: December
A19: ='1. Information Sheet'!F14 -> Atikokan Hydro Inc.
A20: TARIFF OF RATES AND CHARGES
A21: ="Effective and Implementation Date " & TEXT('1. Information Sheet'!F26, "mmmm dd, yyyy") -> Effective and Implementation Date May 01, 2013
A23: This schedule supersedes and replaces all previously
A24: approved schedules of Rates, Charges and Loss Factors
A25: ='1. Information Sheet'!F18 -> EB-2013-0105
A26: RESIDENTIAL SERVICE CLASSIFICATION
A28: This classification applies to an account taking electricity at 750 volts or less where the electricity is used exclusively in a separate metered living accommodation. Customers shall be residing in single-dwelling units that consist of a detached house or one unit of a semi-detached, duplex, triplex or quadruplex house, with a residential zoning. Separately metered dwellings within a town house complex or apartment building also qualify as residential customers. All customers are single-phase. Further servicing details are available in the distributor’s Conditions of Service.
A30: APPLICATION
A32: The application of these rates and charges shall be in accordance with the Licence of the Distributor and any Code or Order of the Board, and amendments thereto as approved by the Board, which may be applicable to the administration of this schedule.
A34: No rates and charges for the distribution of electricity and charges to meet the costs of any work or service done or furnished for the purpose of the distribution of electricity shall be made except as permitted by this schedule, unless required by the Distributor’s Licence or a Code or Order of the Board, and amendments thereto as approved by the Board, or as specified herein.
A36: Unless specifically noted, this schedule does not contain any charges for the electricity commodity, be it under the Regulated Price Plan, a contract with a retailer or the wholesale market price, as applicable.
A38: It should be noted that this schedule does not list any charges or assessments that are required by law to be charged by a distributor and that are not subject to Board approval, such as the Debt Retirement Charge, charges for Ministry of Energy Conservation and Renewable Energy Program, the Provincial Benefit and any applicable taxes.
A40: MONTHLY RATES AND CHARGES - Delivery Component
A42: Service Charge | H42: $ | I42: 34.29
A43: Distribution Volumetric Rate | H43: $/kWh | I43: 0.0135
A44: Rate Rider for Deferral/Variance Account Dispositon (2012)-effective until April 30, 2016 | H44: $/kWh | I44: 0.0009
A45: Retail Transmission Rate - Network Service Rate | H45: $/kWh | I45: 0.0064
A46: Retail Transmission Rate - Line and Transformation Connection Service Rate | H46: $/kWh | I46: 0.0038
A47: Smart Meter Cost Recovery Rider-effective until August 31, 2015 | H47: $ | I47: 0.48
A48: Stranded Meter Rate Rider-effective until August 31, 2015 | H48: $ | I48: 0.39
A49: Rater Rider for Global Adjustment Sub-Account Disposition(2012)-effective until April 30, 2016.
A50: Applicable only for Non-RPP Customers | H50: $/kWh | I50: 0.0004
A52: MONTHLY RATES AND CHARGES - Regulatory Component
A54: Wholesale Market Service Rate | H54: $/kWh | I54: 0.0052
A55: Rural Rate Protection Charge | H55: $/kWh | I55: 0.0011
A56: Standard Supply Service - Administrative Charge (if applicable) | H56: $ | I56: 0.25
A59: GENERAL SERVICE LESS THAN 50 KW SERVICE CLASSIFICATION
A61: This classification applies to a non residential account taking electricity at 750 volts or less whose average monthly maximum demand is less than, or is forecast to be less than, 50 kW. Further servicing details are available in the distributor’s Conditions of Service.
A63: APPLICATION
A65: The application of these rates and charges shall be in accordance with the Licence of the Distributor and any Code or Order of the Board, and amendments thereto as approved by the Board, which may be applicable to the administration of this schedule.
A67: No rates and charges for the distribution of electricity and charges to meet the costs of any work or service done or furnished for the purpose of the distribution of electricity shall be made except as permitted by this schedule, unless required by the Distributor’s Licence or a Code or Order of the Board, and amendments thereto as approved by the Board, or as specified herein.
A69: Unless specifically noted, this schedule does not contain any charges for the electricity commodity, be it under the Regulated Price Plan, a contract with a retailer or the wholesale market price, as applicable.
A71: It should be noted that this schedule does not list any charges, assessments or credits that are required by law to be invoiced by a distributor and that are not subject to Board approval, such as the Debt Retirement Charge, the Global Adjustment, the Ontario Clean Energy Benefit and the HST.
A73: MONTHLY RATES AND CHARGES - Delivery Component
A75: Service Charge | H75: $ | I75: 74.72
A76: Distribution Volumetric Rate | H76: $/kWh | I76: 0.0095
A77: Rate Rider for Deferral/Variance Account Disposition (2012) – effective until April 30, 2016 | H77: $/kWh | I77: 0.0007
A78: Retail Transmission Rate - Network Service Rate | H78: $/kWh | I78: 0.0057
A79: Retail Transmission Rate - Transformation Connection Service Rate | H79: $/kWh | I79: 0.0033
A80: Smart Meter Cost Recovery Rider - effective until August 31, 2015 | H80: $ | I80: 0.78
A81: Stranded Meter Rate Rider - effective until August 31, 2015 | H81: $ | I81: 0.39
A82: Rate Rider for Global Adjustment Sub-Account Disposition (2012) – effective until April 30, 2016
A83: Applicable only for Non-RPP Customers | H83: $/kWh | I83: 0.0004
A85: MONTHLY RATES AND CHARGES - Regulatory Component
A87: Wholesale Market Service Rate | H87: $/kWh | I87: 0.0052
A88: Rural Rate Protection Charge | H88: $/kWh | I88: 0.0011
A89: Standard Supply Service - Administrative Charge (if applicable) | H89: $ | I89: 0.25
A92: GENERAL SERVICE 50 TO 4,999 KW SERVICE CLASSIFICATION
A94: This classification applies to a non residential account whose average monthly maximum demand used for billing purposes is equal to or greater than, or is forecast to be equal to or greater than, 50 kW but less than 5,000 kW. Further servicing details are available in the distributor’s Conditions of Service.
A96: APPLICATION
A98: The application of these rates and charges shall be in accordance with the Licence of the Distributor and any Code or Order of the Board, and amendments thereto as approved by the Board, which may be applicable to the administration of this schedule.
A100: No rates and charges for the distribution of electricity and charges to meet the costs of any work or service done or furnished for the purpose of the distribution of electricity shall be made except as permitted by this schedule, unless required by the Distributor’s Licence or a Code or Order of the Board, and amendments thereto as approved by the Board, or as specified herein.
A102: Unless specifically noted, this schedule does not contain any charges for the electricity commodity, be it under the Regulated Price Plan, a contract with a retailer or the wholesale market price, as applicable.
A104: It should be noted that this schedule does not list any charges or assessments that are required by law to be charged by a distributor and that are not subject to Board approval, such as the Debt Retirement Charge, charges for Ministry of Energy Conservation and Renewable Energy Program, the Provincial Benefit and any applicable taxes.
A106: MONTHLY RATES AND CHARGES - Delivery Component
A108: Service Charge | H108: $ | I108: 552.59
A109: Distribution Volumetric Rate | H109: $/kW | I109: 2.1889
A110: Rate Rider for Deferral/Variance Account Disposition (2012) – effective until April 30, 2016 | H110: $/kW | I110: 0.1984
A111: Retail Transmission Rate - Network Service Rate | H111: $/kW | I111: 2.3141
A112: Retail Transmission Rate - Network Service Rate - Interval Metered | H112: $/kW | I112: 2.455
A113: Retail Transmission Rate - Line and Transformation Connection Service Rate | H113: $/kW | I113: 1.2851
A114: Retail Transmission Rate - Line and Transformation Connection Service Rate - Interval Metered | H114: $/kW | I114: 1.4204
A115: Smart Meter Cost Recovery Rider – effective until August 31, 2015 | H115: $ | I115: 3.8
A116: Stranded Meter Rate Rider - effective until August 31, 2015 | H116: $ | I116: 0.39
A117: Rider for Global Adjustment Sub-Account Disposition (2012) – effective until April 30, 2016
A118: Applicable only for Non-RPP Customers | H118: $/kW | I118: 0.141
A120: MONTHLY RATES AND CHARGES - Regulatory Component
A122: Wholesale Market Service Rate | H122: $/kWh | I122: 0.0052
A123: Rural Rate Protection Charge | H123: $/kWh | I123: 0.0011
A124: Standard Supply Service - Administrative Charge (if applicable) | H124: $ | I124: 0.25
A127: STREET LIGHTING SERVICE CLASSIFICATION
A129: This classification applies to an account for roadway lighting with a Municipality, Regional Municipality, Ministry of Transportation and private roadway lighting, controlled by photo cells. The consumption for these customers will be based on the calculated connected load times the required lighting times established in the approved OEB street lighting load shape template. Further servicing details are available in the distributor’s Conditions of Service.
A131: APPLICATION
A133: The application of these rates and charges shall be in accordance with the Licence of the Distributor and any Code or Order of the Board, and amendments thereto as approved by the Board, which may be applicable to the administration of this schedule.
A135: No rates and charges for the distribution of electricity and charges to meet the costs of any work or service done or furnished for the purpose of the distribution of electricity shall be made except as permitted by this schedule, unless required by the Distributor’s Licence or a Code or Order of the Board, and amendments thereto as approved by the Board, or as specified herein.
A137: Unless specifically noted, this schedule does not contain any charges for the electricity commodity, be it under the Regulated Price Plan, a contract with a retailer or the wholesale market price, as applicable.
A139: It should be noted that this schedule does not list any charges or assessments that are required by law to be charged by a distributor and that are not subject to Board approval, such as the Debt Retirement Charge, charges for Ministry of Energy Conservation and Renewable Energy Program, the Provincial Benefit and any applicable taxes.
A141: MONTHLY RATES AND CHARGES - Delivery Component
A143: Service Charge (per connection) | H143: $ | I143: 11.97
A144: Distribution Volumetric Rate | H144: $/kW | I144: 14.765
A145: Rate Rider for Deferral/Variance Account Disposition (2012) – effective until April 30, 2016 | H145: $/kW | I145: 1.4517
A146: Retail Transmission Rate - Network Service Rate | H146: $/kW | I146: 1.7454
A147: Retail Transmission Rate - Line and Transformation Connection Service Rate | H147: $/kW | I147: 0.9933
A148: Rider for Global Adjustment Sub-Account Disposition (2012) – effective until April 30, 2016
A149: Applicable only for Non-RPP Customers | H149: $/kW | I149: 0.1329
A151: MONTHLY RATES AND CHARGES - Regulatory Component
A153: Wholesale Market Service Rate | H153: $/kWh | I153: 0.0052
A154: Rural Rate Protection Charge | H154: $/kWh | I154: 0.0011
A155: Standard Supply Service - Administrative Charge (if applicable) | H155: $ | I155: 0.25
A158: MICROFIT SERVICE CLASSIFICATION
A160: This classification applies to an electricity generation facility contracted under the Ontario Power Authority’s microFIT program and connected to the distributor’s distribution system. Further servicing details are available in the distributor’s Conditions of Service.
A162: APPLICATION
A164: The application of these rates and charges shall be in accordance with the Licence of the Distributor and any Code or Order of the Board, and amendments thereto as approved by the Board, which may be applicable to the administration of this schedule.
A166: No rates and charges for the distribution of electricity and charges to meet the costs of any work or service done or furnished for the purpose of the distribution of electricity shall be made except as permitted by this schedule, unless required by the Distributor’s Licence or a Code or Order of the Board, and amendments thereto as approved by the Board, or as specified herein.
A168: Unless specifically noted, this schedule does not contain any charges for the electricity commodity, be it under the Regulated Price Plan, a contract with a retailer or the wholesale market price, as applicable.
A170: It should be noted that this schedule does not list any charges, assessments or credits that are required by law to be invoiced by a distributor and that are not subject to Board approval, such as the Debt Retirement Charge, the Global Adjustment, the Ontario Clean Energy Benefit and the HST.
A172: MONTHLY RATES AND CHARGES - Delivery Component
A174: Service Charge | H174: $ | I174: 5.4
A177: ALLOWANCES
A179: Transformer Allowance for Ownership - per kW of billing demand/month | H179: $/kW | I179: -0.29
A180: Primary Metering Allowance for transformer losses – applied to measured demand and energy | H180: % | I180: -1
A182: SPECIFIC SERVICE CHARGES
A184: APPLICATION
A186: The application of these rates and charges shall be in accordance with the Licence of the Distributor and any Code or
A187: Order of the Board, and amendments thereto as approved by the Board, which may be applicable to the
A188: administration of this schedule
A190: No charges to meet the costs of any work or service done or furnished for the purpose of the distribution of electricity
A191: shall be made except as permitted by this schedule, unless required by the Distributor’s Licence or a Code or Order
A192: of the Board, and amendments thereto as approved by the Board, or as specified herein.
A194: It should be noted that this schedule does not list any charges, assessments, or credits that are required by law to be
A195: invoiced by a distributor and that are not subject to Board approval, such as the Debt Retirement Charge, charges for
A196: the Ministry of Energy Conservation and Renewable Energy Program, the Global Adjustment, the Ontario Clean
A197: Energy Benefit and the HST.
A199: Customer Administration
A201: Returned cheque (plus bank charges) | H201: $ | I201: 25
A202: Account set up charge/change of occupancy charge (plus credit agency costs if applicable) | H202: $ | I202: 25
A203: Special meter reads | H203: $ | I203: 25
A206: Non-Payment of Account
A208: Late Payment – per month | H208: % | I208: 1.5
A209: Late Payment – per annum | H209: % | I209: 19.56
A210: Collection of account charge – no disconnection | H210: $ | I210: 25
A211: Disconnect/Reconnect at meter – during regular hours | H211: $ | I211: 28
A212: Disconnect/Reconnect at meter – after regular hours | H212: $ | I212: 315
A213: Disconnect/Reconnect at pole – during regular hours | H213: $ | I213: 28
A214: Disconnect/Reconnect at pole – after regular hours | H214: $ | I214: 315
A215: Specific Charge for Access to the Power Poles - $/pole/year | H215: $ | I215: 22.35
A217: RETAIL SERVICE CHARGES (if applicable)
A219: The application of these rates and charges shall be in accordance with the Licence of the Distributor and any Code or
A220: Order of the Board, and amendments thereto as approved by the Board, which may be applicable to the
A221: administration of this schedule.
A223: No rates and charges for the distribution of electricity and charges to meet the costs of any work or service done or
A224: furnished for the purpose of the distribution of electricity shall be made except as permitted by this schedule, unless
A225: required by the Distributor’s Licence or a Code or Order of the Board, and amendments thereto as approved by the
A226: Board, or as specified herein.
A228: Unless specifically noted, this schedule does not contain any charges for the electricity commodity, be it under the
A229: Regulated Price Plan, a contract with a retailer or the wholesale market price, as applicable
A231: It should be noted that this schedule does not list any charges, assessments, or credits that are required by law to be
A232: invoiced by a distributor and that are not subject to Board approval, such as the Debt Retirement Charge, charges for
A233: the Ministry of Energy Conservation and Renewable Energy Program, the Global Adjustment, the Ontario Clean
A234: Energy Benefit and the HST.
A236: Retail Service Charges refer to services provided by a distributor to retailers or customers related
A237: to the supply of competitive electricity
A240: One-time charge, per retailer, to establish the service agreement between the distributor and the retailer | H240: $ | I240: 100
A241: Monthly Fixed Charge, per retailer | H241: $ | I241: 20
A242: Monthly Variable Charge, per customer, per retailer | H242: $/cust. | I242: 0.5
A243: Distributor-consolidated billing charge, per customer, per retailer | H243: $/cust. | I243: 0.3
A244: Retailer-consolidated billing credit, per customer, per retailer | H244: $/cust. | I244: -0.3
A245: Service Transaction Requests (STR)
A246: Request fee, per request, applied to the requesting party | H246: $ | I246: 0.25
A247: Processing fee, per request, applied to the requesting party | H247: $ | I247: 0.5
A248: Request for customer information as outlined in Section 10.6.3 and Chapter 11 of the Retail
A249: Settlement Code directly to retailers and customers, if not delivered electronically through the
A250: Electronic Business Transaction (EBT) system, applied to the requesting party
A251: Up to twice a year | H251: $ | I251: no charge
A252: More than twice a year, per request (plus incremental delivery costs) | H252: $ | I252: 2
A254: LOSS FACTORS
A256: If the distributor is not capable of prorating changed loss factors jointly with distribution rates, the revised loss factors
A257: will be implemented upon the first subsequent billing for each billing cycle.
A259: Total Loss Factor – Secondary Metered Customer < 5,000 kW | I259: 1.0778
A260: Total Loss Factor – Primary Metered Customer < 5,000 kW | I260: 1.0671

Sheet 14. Bill Impacts
Z1: =MATCH(A13, '3. Rate Class Selection'!B19:B40,0) -> 2 | AA1: =VLOOKUP(A13, lists!AO:AP,2,0) -> kWh
A11: Choose a Rate Class from the drop-down menu below and click UPDATE. For Street Lighting and USL classes, please ensure that the number of customers is manually entered into cells B30 and B31. Click the UPDATE button to refresh the sheet.
A13: General Service Less Than 50 kW | F13: =IF(ISERROR(SEARCH("MicroFit",A13,1))=FALSE,"Bill impact presentation for this class does not exist.", "") -> 
A15: Consumption | B15: 2000 | C15: kWh | E15: =IF(AA1 = "kWh", "", "kW") -> 
A16: RPP Tier One | B16: 750 | C16: kWh
A17: Load Factor
A18: Loss Factor | B18: 1.0778
B21: CURRENT ESTIMATED BILL | E21: PROPOSED ESTIMATED BILL
B22: Volume | C22: Current Rate ($) | D22: Current Charge ($) | E22: Volume | F22: Proposed Rate ($) | G22: Proposed Charge ($) | I22: Change ($) | J22: Change (%) | K22: % of Total RPP Bill | L22: % of Total TOU Bill
A23: Energy First Tier (kWh) | B23: 750 | C23: 0.075 | D23: =B23*C23 -> 56.25 | E23: =B23 -> 750 | F23: =C23 -> 0.075 | G23: =E23*F23 -> 56.25 | I23: =G23-D23 -> 0 | J23: =I23/D23 -> 0 | K23: =G23/G49 -> 0.1748371567
A24: Energy Second Tier (kWh) | B24: 1405.6 | C24: 0.088 | D24: =B24*C24 -> 123.6928 | E24: =B24 -> 1405.6 | F24: =C24 -> 0.088 | G24: =E24*F24 -> 123.6928 | I24: =G24-D24 -> 0 | J24: =I24/D24 -> 0 | K24: =G24/G49 -> 0.3844639547
A26: TOU - Off Peak | B26: =0.64*$B$15*$B$18 -> 1379.584 | C26: 0.065 | D26: =C26*B26 -> 89.67296 | E26: =B26 -> 1379.584 | F26: =C26 -> 0.065 | G26: =F26*E26 -> 89.67296 | I26: =G26-D26 -> 0 | J26: =I26/D26 -> 0 | L26: =G26/G55 -> 0.2841755897
A27: TOU - Mid Peak | B27: =0.18*$B$15*$B$18 -> 388.008 | C27: 0.1 | D27: =C27*B27 -> 38.8008 | E27: =B27 -> 388.008 | F27: =C27 -> 0.1 | G27: =F27*E27 -> 38.8008 | H27: 3.88008 | I27: =G27-D27 -> 0 | J27: =I27/D27 -> 0 | L27: =G27/G55 -> 0.1229605917
A28: TOU - On Peak | B28: =0.18*$B$15*$B$18 -> 388.008 | C28: 0.117 | D28: 45.396936 | E28: 388.008 | F28: 0.117 | G28: =F28*E28 -> 45.396936 | H28: 5.311441512 | I28: 0 | J28: =I28/D28 -> 0 | L28: =G28/G55 -> 0.1438638923
A30: Service Charge | B30: 1 | C30: 74.07 | D30: 74.07 | E30: =B30 -> 1 | F30: 74.72 | G30: =F30*E30 -> 74.72 | H30: 5583.0784 | I30: 0.65 | J30: =I30/D30 -> 0.008775482652 | K30: =G30/G49 -> 0.2322459084 | L30: =G30/G55 -> 0.2367893294
A31: Service Charge Rate Rider(s) | B31: 1 | C31: 2.18 | D31: 2.18 | E31: =B31 -> 1 | F31: 1.17 | G31: =F31*E31 -> 1.17 | H31: =G31*F31 -> 1.3689 | I31: -1.01 | J31: =I31/D31 -> -0.4633027523 | K31: =G31/G49 -> 0.003636612859 | L31: =G31/G55 -> 0.003707755827
A32: Distribution Volumetric Rate | B32: 2000 | C32: 0.0094 | D32: 18.8 | E32: =B32 -> 2000 | F32: 0.0095 | G32: 19 | H32: 0.1805 | I32: 0.2 | J32: =I32/D32 -> 0.01063829787 | K32: =G32/G49 -> 0.05905610625 | L32: =G32/G55 -> 0.06021141941
A33: Low Voltage Volumetric Rate | B33: 2000 | D33: 0 | E33: =B33 -> 2000 | G33: 0 | H33: 0 | I33: 0 | J33: 0 | K33: 0 | L33: 0
A34: Distribution Volumetric Rate Rider(s) | B34: 2000 | C34: 0.0008 | D34: 1.6 | E34: 2000 | F34: 0.0007 | G34: 1.4 | H34: 0.00098 | I34: -0.2 | J34: =I34/D34 -> -0.125 | K34: =G34/G49 -> 0.004351502566 | L34: =G34/G55 -> 0.004436630904
A35: Total: Distribution | D35: =ROUND(SUM(D30:D34),2) -> 96.65 | G35: =ROUND(SUM(G30:G34),2) -> 96.29 | I35: =G35-D35 -> -0.36 | J35: -0.003724780135 | K35: =G35/G49 -> 0.2992901301 | L35: =G35/G55 -> 0.3051451355
A36: Retail Transmission Rate - Network Service Rate | B36: 2155.6 | C36: 0.0056 | D36: 12.07 | E36: 2155.6 | F36: 0.0057 | G36: 12.29 | I36: 0.22 | J36: 0.01822700911 | K36: =G36/G49 -> 0.0381999761 | L36: =G36/G55 -> 0.03894728129
A37: Total: Retail Transmission | D37: =SUM(D36:D36) -> 12.07 | G37: =SUM(G36:G36) -> 12.29 | I37: =ROUND(G37 - D37,2) -> 0.22 | J37: 0.01822700911 | K37: =G37/G49 -> 0.0381999761 | L37: =G37/G55 -> 0.03894728129
A38: Sub-Total: Delivery (Distribution and Retail Transmission) | D38: =SUM(D37,D35) -> 108.72 | G38: =SUM(G37,G35) -> 108.58 | I38: =G38 - D38 -> -0.14 | J38: -0.001287711553 | K38: =G38/G49 -> 0.3374901062 | L38: =G38/G55 -> 0.3440924168
A39: Wholesale Market Service Rate | B39: 2155.6 | C39: 0.0052 | D39: =B39*C39 -> 11.20912 | E39: =B39 -> 2155.6 | F39: 0.0052 | G39: =E39*F39 -> 11.20912 | I39: =G39-D39 -> 0 | J39: 0 | K39: =G39/G49 -> 0.03484036746 | L39: =G39/G55 -> 0.03552194871
A40: Rural Rate Protection Charge | B40: 2155.6 | C40: 0.0011 | D40: =B40*C40 -> 2.37116 | E40: 2155.6 | F40: 0.0011 | G40: =E40*F40 -> 2.37116 | I40: =G40-D40 -> 0 | J40: 0 | K40: =G40/G49 -> 0.007370077732 | L40: =G40/G55 -> 0.007514258381
A41: Standard Supply Service – Administration Charge (if applicable) | B41: 1 | C41: 0.25 | D41: 0.25 | E41: 1 | F41: 0.25 | G41: =E41*F41 -> 0.25 | I41: 0 | J41: 0 | K41: =G41/G49 -> 0.0007770540297 | L41: =G41/G55 -> 0.0007922555185
A42: Sub-Total: Regulatory | D42: =SUM(D39:D41) -> 13.83028 | G42: =SUM(G39:H41) -> 13.83028 | I42: =G42-D42 -> 0 | J42: 0 | K42: =G42/G49 -> 0.04298749922 | L42: =G42/G55 -> 0.04382846261
A43: Debt Retirement Charge (DRC) | B43: 2000 | C43: 0.007 | D43: 14 | E43: =B43 -> 2000 | F43: =C43 -> 0.007 | G43: =E43*F43 -> 14 | I43: 0 | J43: 0 | K43: =G43/G49 -> 0.04351502566 | L43: =G43/G55 -> 0.04436630904
A45: Total Bill on RPP (before taxes) | D45: 316.49 | G45: 316.35 | I45: =G45-D45 -> -0.14 | J45: =I45/D45 -> -0.000442352049 | K45: =G45/G49 -> 0.9832841691
A46: HST | C46: 0.13 | D46: =C46*D45 -> 41.1437 | F46: =C46 -> 0.13 | G46: =F46*G45 -> 41.1255 | I46: =G46-D46 -> -0.0182 | J46: =I46/D46 -> -0.000442352049 | K46: =G46/G49 -> 0.127826942
A47: Total Bill (including HST) | D47: =D46+D45 -> 357.6337 | G47: =G46+G45 -> 357.4755 | I47: =G47-D47 -> -0.1582 | J47: =I47/D47 -> -0.000442352049 | K47: =G47/G49 -> 1.111111111
A48: Ontario Clean Energy Benefit (OCEB) | C48: -0.1 | D48: =-0.1*D47 -> -35.76337 | F48: =C48 -> -0.1 | G48: =-0.1*G47 -> -35.74755 | I48: =G48-D48 -> 0.01582 | J48: =I48/D48 -> -0.000442352049 | K48: =G48/G49 -> -0.1111111111
A49: Total Bill on RPP (including OCEB) | D49: =D47+D48 -> 321.87033 | G49: =G47+G48 -> 321.72795 | I49: =G49-D49 -> -0.14238 | J49: =I49/D49 -> -0.000442352049 | K49: =G49/G49 -> 1
A51: Total Bill on TOU (before taxes) | D51: 310.42 | G51: 310.28 | I51: =G51-D51 -> -0.14 | J51: =I51/D51 -> -0.0004510018684 | L51: =G51/G55 -> 0.9832841691
A52: HST | C52: 0.13 | D52: =C52*D51 -> 40.3546 | F52: =C52 -> 0.13 | G52: =F52*G51 -> 40.3364 | I52: =G52-D52 -> -0.0182 | J52: =I52/D52 -> -0.0004510018684 | L52: =G52/G55 -> 0.127826942
A53: Total Bill (including HST) | D53: =D52+D51 -> 350.7746 | G53: =G52+G51 -> 350.6164 | I53: =G53-D53 -> -0.1582 | J53: =I53/D53 -> -0.0004510018684 | L53: =G53/G55 -> 1.111111111
A54: Ontario Clean Energy Benefit (OCEB) | C54: -0.1 | D54: =-0.1*D53 -> -35.07746 | F54: =C54 -> -0.1 | G54: =-0.1*G53 -> -35.06164 | I54: =G54-D54 -> 0.01582 | J54: =I54/D54 -> -0.0004510018684 | L54: =G54/G55 -> -0.1111111111
A55: Total Bill on TOU (including OCEB) | D55: =D53+D54 -> 315.69714 | G55: =G53+G54 -> 315.55476 | I55: =G55-D55 -> -0.14238 | J55: =I55/D55 -> -0.0004510018684 | L55: =G55/G55 -> 1
A58: Applicants must provide bill impacts for residential at 800 kWh and GS<50kW at 2000 kWh. In addition, their filing should cover the range that is relevant to their service territory, class by class. A general guideline of consumption levels follows: Residential (kWh) - 100, 250, 500, 800, 1000, 1500, 2000 GS<50kW (kWh) - 1000, 2000, 5000, 10000, 15000 GS>50kW (kW) 100, 500, 1000 Large User - range appropriate for utility Street/Sentinel Lighting Classes and USL - 150 kWh and 1 kW, range appropriate for utility.

Sheet lists (hidden)
A1: Residential | B1: Embedded Distributor | C1: =COUNTA(B1:B17) -> 4 | I1: Distribution Volumetric Rate | L1: Loss Factors | N1: Units | O1: Units1 | P1: Units2 | Z1: Account History | AA1: Account set up charge/change of occupancy charge (plus credit agency costs if applicable) | AB1: Total Loss Factor – Embedded Distributor – Hydro One Networks Inc. | AM1: Algoma Power Inc. | AO1: Embedded Distributor | AP1: kW | AT1: Sub-Total: Delivery (Distribution and Retail Transmission)
A2: Residential - Time of Use | B2: General Service 3,000 to 4,999 kW | I2: GEA Rate Rider - Effective Until December 31, 2012 | L2: Total Loss Factor – Primary Metered Customer | N2: $ | O2: $/kWh | P2: $ | Z2: Account set up charge/change of occupancy charge | AA2: Administrative Billing Charge | AB2: Total Loss Factor – Primary Metered Customer | AM2: Atikokan Hydro Inc. | AO2: Farms – Single Phase energy-billed [F1] | AP2: kWh | AT2: Wholesale Market Service Rate | AW2: =AU2*AV2 -> 0 | AX2: =AU2 -> 0 | AY2: 0 | AZ2: =AX2*AY2 -> 0 | BB2: =AZ2-AW2 -> 0 | BC2: =BB2/AW2 -> 
A3: Residential Regular | B3: General Service 1,000 to 4,999 kW | I3: Green Energy Act Initiatives Funding Adder | L3: Total Loss Factor – Primary Metered Customer < 5,000 kW | N3: $/kWh | O3: $/kW | P3: % | W3: MSC | Z3: Account set up charge/change of occupancy charge (plus credit agency costs if applicable – Residential) | AA3: Bell Canada Pole Rentals | AB3: Total Loss Factor – Primary Metered Customer < 5,000 kW | AM3: Attawapiskat Power Corporation | AO3: Farms – Three Phase energy-billed [F3] | AP3: kWh | AT3: Rural Rate Protection Charge | AW3: =AU3*AV3 -> 0 | AX3: 0 | AY3: 0 | AZ3: =AX3*AY3 -> 0 | BB3: =AZ3-AW3 -> 0 | BC3: =BB3/AW3 -> 
A4: Residential Urban | B4: General Service Equal To Or Greater Than 1,500 kW - Interval Metered | I4: Green Energy Act Plan Funding Adder – Effective until March 31, 2013 | L4: Total Loss Factor – Primary Metered Customer > 5,000 kW | N4: $/kW | O4: $/kVA | W4: SM_Rate_Adder | Z4: Account set up charge/change of occupancy charge (plus credit agency costs if applicable) | AA4: Clearance Pole Attachment charge $/pole/year | AB4: Total Loss Factor – Primary Metered Customer > 5,000 kW | AM4: Bluewater Power Distribution Corp. | AO4: General Service 50 to 2,499 kW | AP4: kW | AT4: Standard Supply Service – Administration Charge (if applicable) | AW4: 0 | AX4: 0 | AY4: 0 | AZ4: =AX4*AY4 -> 0 | BB4: 0
A5: General Service Less Than 50 kW | I5: Low Voltage Service Charge | L5: Total Loss Factor – Secondary Metered Customer | N5: $/kVA | W5: MSC_Rate_Rider_ | Z5: Arrears certificate | AA5: Collection of account charge – no disconnection | AB5: Total Loss Factor – Secondary Metered Customer | AM5: Brant County Power | AO5: General Service - Commercial | AP5: kW | AT5: Sub-Total: Regulatory | AW5: =SUM(AW2:AW4) -> 0 | AZ5: =SUM(AZ2:BA4) -> 0 | BB5: =AZ5-AW5 -> 0
A6: General Service Less Than 50 kW – Single Phase energy-billed [G1] | I6: Low Voltage Service Rate | L6: Total Loss Factor – Secondary Metered Customer < 5,000 kW | W6: VC | Z6: Arrears certificate (credit reference) | AA6: Collection of account charge – no disconnection – after regular hours | AB6: Total Loss Factor – Secondary Metered Customer < 5,000 kW | AM6: Brantford Power Inc. | AO6: General Service - Institutional | AP6: kW | AT6: Debt Retirement Charge (DRC) | AW6: 0 | AX6: =AU6 -> 0 | AY6: =AV6 -> 0 | AZ6: =AX6*AY6 -> 0 | BB6: 0
I7: Low Voltage Volumetric Rate
A8: General Service Less Than 50 kW – Three Phase energy-billed [G3] | L8: Total Loss Factor – Secondary Metered Customer > 5,000 kW | W8: VC_Rate_Rider_ | Z8: Charge to certify cheque | AA8: Collection of account charge – no disconnection - during regular business hours | AB8: Total Loss Factor – Secondary Metered Customer > 5,000 kW | AM8: Burlington Hydro Inc. | AO8: General Service 1,000 to 2,999 kW | AP8: kW | AT8: Total Bill on RPP (before taxes) | BB8: =AZ8-AW8 -> 0
A9: General Service Less Than 50 kW – Transmission Class energy-billed [T] | I9: Minimum Distribution Charge – per KW of maximum billing demand in the previous 11 months | L9: Distribution Loss Factor - Secondary Metered Customer < 5,000 kW | W9: VC_GA_Rate_Rider_kW_ | Z9: Collection of Account Charge – No Disconnection | AA9: Collection of account charge – no disconnection – during regular hours | AM9: Cambridge and North Dumfries Hydro | AO9: General Service 1,000 to 4,999 kW | AP9: kW | AT9: HST | AW9: =AV9*AW8 -> 0 | AY9: =AV9 -> 0 | AZ9: =AY9*AZ8 -> 0 | BB9: =AZ9-AW9 -> 0 | BC9: =BB9/AW9 -> 
A10: General Service Less Than 50 kW – Urban energy-billed [UG] | I10: Monthly Distribution Wheeling Service Rate – Dedicated LV Line | L10: Distribution Loss Factor - Secondary Metered Customer > 5,000 kW | W10: VC_LV_Rate | Z10: Credit Card Convenience Charge | AA10: Collection/Disconnection/Load Limiter/Reconnection – if in Community | AM10: Canadian Niagara Power Inc. – Eastern Ontario Power/Fort Erie/Port Colborne | AO10: General Service 1,000 to 4,999 kW - Interval Meters | AP10: kW | AT10: Total Bill (including HST) | AW10: =AW9+AW8 -> 0 | AZ10: =AZ9+AZ8 -> 0 | BB10: =AZ10-AW10 -> 0 | BC10: =BB10/AW10 -> 
A11: General Service 50 to 2,499 kW | I11: Monthly Distribution Wheeling Service Rate – Hydro One Networks | L11: Distribution Loss Factor - Primary Metered Customer < 5,000 kW | W11: RTSR_Network | Z11: Credit check (plus credit agency costs) | AA11: Credit Card Convenience Charge | AM11: Centre Wellington Hydro Ltd. | AO11: General Service 1,000 To 4,999 kW (co-generation) | AP11: kW | AT11: Ontario Clean Energy Benefit (OCEB) | AW11: =-0.1*AW10 -> 0 | AY11: =AV11 -> 0 | AZ11: =-0.1*AZ10 -> 0 | BB11: =AZ11-AW11 -> 0 | BC11: =BB11/AW11 -> 
A12: General Service - Commercial | I12: Monthly Distribution Wheeling Service Rate – Shared LV Line | L12: Distribution Loss Factor - Primary Metered Customer > 5,000 kW | W12: RTSR_Connection | Z12: Credit reference Letter | AA12: Disconnect/Reconnect at meter – after regular hours | AM12: Chapleau Public Utilities Corporation | AO12: General Service 1,500 to 4,999 kW | AP12: kW | AT12: Total Bill on RPP (including OCEB) | AW12: =AW10+AW11 -> 0 | AZ12: =AZ10+AZ11 -> 0 | BB12: =AZ12-AW12 -> 0 | BC12: =BB12/AW12 -> 
I13: Monthly Distribution Wheeling Service Rate – Waterloo North Hydro
A14: General Service - Institutional | L14: Total Loss Factor - Embedded Distributor | W14: RTSR_Network_Interval | Z14: Credit reference/credit check (plus credit agency costs – General Service) | AA14: Disconnect/Reconnect at meter – during regular hours | AM14: COLLUS Power Corp. | AO14: General Service 2,500 to 4,999 kW | AP14: kW | AT14: Total Bill on TOU (before taxes) | BB14: =AZ14-AW14 -> 0
A15: General Service 1,000 to 2,999 kW | I15: Rate Rider for Capital Gain | L15: Total Loss Factor – Embedded Distributor – Hydro One Networks Inc. | W15: RTSR_Connection_Interval | Z15: Credit Reference/credit check (plus credit agency costs) | AA15: Disconnect/Reconnect at pole – after regular hours | AM15: Cooperative Hydro Embrun Inc. | AO15: General Service 3,000 to 4,999 kW | AP15: kW | AT15: HST | AW15: =AV15*AW14 -> 0 | AY15: =AV15 -> 0 | AZ15: =AY15*AZ14 -> 0 | BB15: =AZ15-AW15 -> 0 | BC15: =BB15/AW15 -> 
A16: General Service 1,000 to 4,999 kW | I16: Rate Rider for Capital Gain – Effective until April 30, 2014 | W16: RTSR_Network_Interval_GR1000kW | Z16: Dispute Test – Commercial self contained -- MC | AA16: Disconnect/Reconnect at pole – during regular hours | AM16: E.L.K. Energy Inc. | AO16: General Service 3,000 to 4,999 kW - Intermediate Use | AP16: kW | AT16: Total Bill (including HST) | AW16: =AW15+AW14 -> 0 | AZ16: =AZ15+AZ14 -> 0 | BB16: =AZ16-AW16 -> 0 | BC16: =BB16/AW16 -> 
A17: General Service 1,000 to 4,999 kW - Interval Meters | I17: Rate Rider for Deferral/Variance Account Disposition | W17: RTSR_Connection_Interval_GR1000kW | Z17: Dispute Test – Commercial TT -- MC | AA17: Disconnect/Reconnect Charge – At Meter – After Hours | AM17: Enersource Hydro Mississauga Inc. | AO17: General Service 3,000 to 4,999 kW - Interval Metered | AP17: kW | AT17: Ontario Clean Energy Benefit (OCEB) | AW17: =-0.1*AW16 -> 0 | AY17: =AV17 -> 0 | AZ17: =-0.1*AZ16 -> 0 | BB17: =AZ17-AW17 -> 0 | BC17: =BB17/AW17 -> 
A18: General Service 1,000 To 4,999 kW (co-generation) | I18: Rate Rider for Deferral/Variance Account Disposition (2009) | W18: RTSR_Line_Connection | Z18: Dispute Test – Residential | AA18: Disconnect/Reconnect Charge – At Meter – During Regular Hours | AM18: Entegrus Powerlines Inc. | AO18: General Service 3,000 to 4,999 kW - Time of Use | AP18: kW | AT18: Total Bill on TOU (including OCEB) | AW18: =AW16+AW17 -> 0 | AZ18: =AZ16+AZ17 -> 0 | BB18: =AZ18-AW18 -> 0 | BC18: =BB18/AW18 -> 
A19: General Service 1,500 to 4,999 kW | I19: Rate Rider for Deferral/Variance Account Disposition (2010) | W19: RTSR_Transformer_Connection | Z19: Duplicate Invoices for previous billing | AA19: Disconnect/Reconnect Charge – At Pole – After Hours | AM19: ENWIN Utilities Ltd. | AO19: General Service 50 to 1,000 kW | AP19: kW
A20: General Service 2,500 to 4,999 kW | I20: Rate Rider for Deferral/Variance Account Disposition (2010) – Applicable only for Wholesale Market Participants | W20: WMSR | Z20: Easement Letter | AA20: Disconnect/Reconnect Charge – At Pole – During Regular Hours | AM20: Erie Thames Powerlines Corp. | AO20: General Service 50 to 1,000 kW - Interval Meters | AP20: kW
A21: General Service 3,000 to 4,999 kW | I21: Rate Rider for Deferral/Variance Account Disposition (2010) – Effective until April 30, 2012 | W21: RRRP | Z21: Income Tax Letter | AA21: Disconnect/Reconnect Charges for non payment of account - At Meter After Hours | AM21: Espanola Regional Hydro Distribution Corporation | AO21: General Service 50 to 1,000 kW - Non Interval Meters | AP21: kW
A22: General Service 3,000 to 4,999 kW - Intermediate Use | I22: Rate Rider for Deferral/Variance Account Disposition (2010) – Effective until April 30, 2014 | W22: SPC | Z22: Interval Meter Interrogation | AA22: Disconnect/Reconnect charges for non payment of account – at meter after regular hours | AM22: Essex Powerlines Corporation | AO22: General Service 50 to 1,499 kW | AP22: kW
A23: General Service 3,000 to 4,999 kW - Interval Metered | I23: Rate Rider for Deferral/Variance Account Disposition (2010) – Effective until December 31, 2014 | W23: DRC | Z23: Interval meter request change | AA23: Disconnect/Reconnect Charges for non payment of account - At Meter During Regular Hours | AM23: Festival Hydro Inc. | AO23: General Service 50 to 1,499 kW - Interval Metered | AP23: kW
A24: General Service 3,000 to 4,999 kW - Time of Use | I24: Rate Rider for Deferral/Variance Account Disposition (2011) | W24: SSS | Z24: Legal letter | AA24: Disconnect/Reconnect charges for non payment of account – at meter during regular hours | AM24: Fort Albany Power Corporation | AO24: General Service 50 to 2,999 kW | AP24: kW
A25: General Service 50 to 1,000 kW | I25: Rate Rider for Deferral/Variance Account Disposition (2011) – Applicable only for Wholesale Market Participants | W25: SFLF | Z25: Legal letter charge | AA25: Disconnect/Reconnect charges for non payment of account – at pole after regular hours | AM25: Fort Frances Power Corporation | AO25: General Service 50 to 2,999 kW - Interval Metered | AP25: kW
A26: General Service 50 to 1,000 kW - Interval Meters | B26: January | I26: Rate Rider for Deferral/Variance Account Disposition (2011) – Effective until April 30, 2014 | W26: DLF_Secondary_LT_5000kW | Z26: Meter dispute charge plus Measurement Canada fees (if meter found correct) | AA26: Disconnect/Reconnect charges for non payment of account – at pole during regular hours | AM26: Greater Sudbury Hydro Inc. | AO26: General Service 50 to 2,999 kW - Time of Use | AP26: kW
A27: General Service 50 to 1,000 kW - Non Interval Meters | B27: February | I27: Rate Rider for Deferral/Variance Account Disposition (2012) – Effective until December 31, 2012 | W27: DLF_Secondary_GT_5000kW | Z27: Notification charge | AA27: Disconnect/Reconnection for >300 volts - after regular hours | AM27: Grimsby Power Inc. | AO27: General Service 50 to 4,999 kW | AP27: kW
A28: General Service 50 to 1,499 kW | B28: March | I28: Rate Rider for Deferral/Variance Account Disposition (2012) – Effective until March 31, 2013 | W28: DLF_Primary_LT_5000kW | Z28: Pulling Post Dated Cheques | AA28: Disconnect/Reconnection for >300 volts - during regular hours | AM28: Guelph Hydro Electric Systems Inc. | AO28: General Service 50 to 4,999 kW – Interval Metered | AP28: kW
A29: General Service 50 to 1,499 kW - Interval Metered | B29: April | I29: Rate Rider for Deferral/Variance Account Disposition (2012) – Effective until April 30, 2013 | W29: DLF_Primary_GT_5000kW | Z29: Request for other billing information | AA29: Disposal of Concrete Poles | AM29: Haldimand County Hydro Inc. | AO29: General Service 50 to 4,999 kW - Time of Use | AP29: kW
A30: General Service 50 to 2,999 kW | B30: May | I30: Rate Rider for Deferral/Variance Account Disposition (2012) – Effective until April 30, 2014 | W30: TLF_Secondary_LT_5000kW | Z30: Returned cheque (plus bank charges) | AA30: Dispute Test – Commercial TT -- MC | AM30: Halton Hills Hydro Inc. | AO30: General Service 50 to 4,999 kW (CoGeneration) | AP30: kW
A31: General Service 50 to 2,999 kW - Interval Metered | B31: June | I31: Rate Rider for Deferral/Variance Account Disposition (2012) – Effective until December 31, 2013 | W31: TLF_Secondary_GT_5000kW | Z31: Returned cheque charge (plus bank charges) | AA31: Install/Remove load control device – after regular hours | AM31: Hearst Power Distribution Co. Ltd. | AO31: General Service 50 to 4,999 kW (formerly Time of Use) | AP31: kW
A32: General Service 50 to 2,999 kW - Time of Use | B32: July | I32: Rate Rider for Disposition of Post Retirement Actuarial Gain – Effective until March 31, 2025 | W32: TLF_Primary_LT_5000kW | Z32: Special Billing Service (aggregation) | AA32: Install/Remove load control device – during regular hours | AM32: Horizon Utilities Corporation | AO32: General Service 50 to 499 kW | AP32: kW
A33: General Service 50 to 4,999 kW | B33: August | I33: Rate Rider for Disposition of PILs Deferral/Variance Account – Effective until March 31, 2016 | W33: TLF_Primary_GT_5000kW | Z33: Special Billing Service (sub-metering charge per meter) | AA33: Interval Meter Interrogation | AM33: Hydro 2000 Inc. | AO33: General Service 50 to 699 kW | AP33: kW
A34: General Service 50 to 4,999 kW – Interval Metered | B34: September | I34: Rate Rider for Foregone Incremental Revenue | W34: TLF_EmbeddedDistributor | Z34: Special meter reads | AA34: Interval Meter Load Management Tool Charge $/month | AM34: Hydro Hawkesbury Inc. | AO34: General Service 50 to 999 kW | AP34: kW
A35: General Service 50 to 4,999 kW - Time of Use | B35: October | I35: Rate Rider for Foregone Incremental Revenue for Low Voltage Service | Z35: Statement of Account | AA35: Interval meter request change | AM35: Hydro One Brampton Networks Inc. | AO35: General Service 50 to 999 kW - Interval Metered | AP35: kW
A36: General Service 50 to 4,999 kW (CoGeneration) | B36: November | I36: Rate Rider for Foregone Revenue Recovery | Z36: Unprocessed Payment Charge (plus bank charges) | AA36: Late Payment – per annum | AM36: Hydro One Networks Inc. | AO36: General Service 500 to 4,999 kW | AP36: kW
A37: General Service 50 to 4,999 kW (formerly Time of Use) | B37: December | I37: Rate Rider for Foregone Revenue Recovery (2012) - Effective Until December 31, 2012 | AA37: Late Payment – per month | AM37: Hydro One Remote Communities Inc. | AO37: General Service 700 to 4,999 kW | AP37: kW
A38: General Service 50 to 499 kW | I38: Rate Rider for Recovery of Foregone Revenue – Effective until December 31, 2012 | AA38: Layout fees | AM38: Hydro Ottawa Limited | AO38: General Service Equal To Or Greater Than 1,500 kW | AP38: kW
A39: General Service 50 to 699 kW | I39: Rate Rider for Global Adjustment Sub-Account (2010) – Applicable only for Non-RPP Customers | AA39: Meter dispute charge plus Measurement Canada fees (if meter found correct) | AM39: Innisfil Hydro Dist. Systems Limited | AO39: General Service Equal To Or Greater Than 1,500 kW - Interval Metered | AP39: kW
A40: General Service 50 to 999 kW | I40: Rate Rider for Global Adjustment Sub-Account (2010) – Applicable only for Non-RPP Customers – Effective until April 30, 2012 | AA40: Meter Interrogation Charge | AM40: Kashechewan Power Corporation | AO40: General Service Greater Than 1,000 kW | AP40: kW
A41: General Service 50 to 999 kW - Interval Metered | I41: Rate Rider for Global Adjustment Sub-Account (2011) – Applicable only for Non-RPP Customers | AA41: Missed Service Appointment | AM41: Kenora Hydro Electric Corporation Ltd. | AO41: General Service Intermediate 1,000 To 4,999 kW | AP41: kW
A42: General Service 500 to 4,999 kW | I42: Rate Rider for Global Adjustment Sub-Account (2012) – Applicable only for Non-RPP Customers – Effective until December 31, 2013 | AA42: Norfolk Pole Rentals – Billed | AM42: Kingston Hydro Corporation | AO42: General Service Intermediate Rate Class 1,000 To 4,999 kW (formerly General Service > 50 kW Customers) | AP42: kW
A43: General Service 700 to 4,999 kW | I43: Rate Rider for Global Adjustment Sub-Account Disposition – Applicable only for Non-RPP Customers | AA43: Optional Interval/TOU Meter charge $/month | AM43: Kitchener-Wilmot Hydro Inc. | AO43: General Service Intermediate Rate Class 1,000 To 4,999 kW (formerly Large Use Customers) | AP43: kW
A44: General Service Equal To Or Greater Than 1,500 kW | I44: Rate Rider for Global Adjustment Sub-Account Disposition (2010 credit) – Applicable only for Non-RPP Customers | AA44: Overtime Locate | AM44: Lakefront Utilities Inc. | AO44: General Service Less Than 50 kW | AP44: kWh
A45: General Service Equal To Or Greater Than 1,500 kW - Interval Metered | I45: Rate Rider for Global Adjustment Sub-Account Disposition (2010 recalculated) – Applicable only for Non-RPP Customers | AA45: Owner Requested Disconnection/Reconnection – after regular hours | AM45: Lakeland Power Distribution Ltd. | AO45: General Service Less Than 50 kW – Single Phase energy-billed [G1] | AP45: kWh
A46: General Service Greater Than 1,000 kW | I46: Rate Rider for Global Adjustment Sub-Account Disposition (2010) – Effective until April 30, 2012 Applicable only for Non-RPP Customers | AA46: Owner Requested Disconnection/Reconnection – during regular hours | AM46: London Hydro Inc. | AO46: General Service Less Than 50 kW – Three Phase energy-billed [G3] | AP46: kWh
A47: General Service Intermediate 1,000 To 4,999 kW | I47: Rate Rider for Global Adjustment Sub-Account Disposition (2010) – Effective until April 30, 2014 Applicable only for Non-RPP Customers | AA47: Returned cheque (plus bank charges) | AM47: Midland Power Utility Corporation | AO47: General Service Less Than 50 kW – Transmission Class energy-billed [T] | AP47: kWh
A48: General Service Intermediate Rate Class 1,000 To 4,999 kW (formerly General Service > 50 kW Customers) | I48: Rate Rider for Global Adjustment Sub-Account Disposition (2011) – Applicable only for Non-RPP Customers and excluding Wholesale Market Participants | AA48: Rural system expansion / line connection fee | AM48: Milton Hydro Distribution Inc. | AO48: General Service Less Than 50 kW – Urban energy-billed [UG] | AP48: kWh
A49: General Service Intermediate Rate Class 1,000 To 4,999 kW (formerly Large Use Customers) | I49: Rate Rider for Global Adjustment Sub-Account Disposition (2011) – Effective until April 30, 2014 Applicable only for Non-RPP Customers | AA49: Same Day Open Trench | AM49: Newmarket – Tay Power Distribution Ltd. | AO49: General Service Single Phase – G1 | AP49: kW
A50: Large Use | I50: Rate Rider for Global Adjustment Sub-Account Disposition (2012) – Effective until March 31, 2013 Applicable only for Non-RPP Customers | AA50: Scheduled Day Open Trench | AM50: Niagara Peninsula Energy Inc. | AO50: General Service Three Phase – G3 | AP50: kW
A51: Large Use - 3TS | I51: Rate Rider for Global Adjustment Sub-Account Disposition (2012) – Effective until April 30, 2013 Applicable only for Non-RPP Customers | AA51: Service call – after regular hours | AM51: Niagara-on-the-Lake Hydro Inc. | AO51: Intermediate With Self Generation | AP51: kW
A52: Large Use - Ford Annex | I52: Rate Rider for Global Adjustment Sub-Account Disposition (2012) – Effective until April 30, 2014 Applicable only for Non-RPP Customers | AA52: Service call – customer owned equipment | AM52: Norfolk Power Distribution Ltd. | AO52: Large Use | AP52: kW
A53: Large Use - Regular | I53: Rate Rider for Lost Revenue Adjustment Mechanism (LRAM) Recovery | AA53: Service Call – Customer-owned Equipment – After Regular Hours | AM53: North Bay Hydro Distribution Limited | AO53: Large Use - 3TS | AP53: kW
A54: Large Use > 5000 kW | I54: Rate Rider for Lost Revenue Adjustment Mechanism (LRAM) Recovery – Effective until April 30, 2013 | AA54: Service Call – Customer-owned Equipment – During Regular Hours | AM54: Northern Ontario Wires Inc. | AO54: Large Use - Ford Annex | AP54: kW
A55: MicroFit | I55: Rate Rider for Lost Revenue Adjustment Mechanism (LRAM) Recovery – Effective until April 30, 2014 | AA55: Service Charge for onsite interrogation of interval meter due to customer phone line failure - required weekly until line repaired $ 6 | AM55: Oakville Hydro Distribution Inc. | AO55: Large Use - Regular | AP55: kW
A56: Sentinel Lighting | I56: Rate Rider for Lost Revenue Adjustment Mechanism (LRAM) Recovery – Effective until December 31, 2012 | AA56: Service Layout - Commercial | AM56: Orangeville Hydro Limited | AO56: Large Use > 5000 kW | AP56: kW
A57: Stand-By | I57: Rate Rider for Lost Revenue Adjustment Mechanism (LRAM) Recovery (2010) | AA57: Service Layout - ResidentiaI | AM57: Orillia Power Distribution Corp. | AO57: MicroFit | AP57: $
A58: Street Lighting | I58: Rate Rider for Lost Revenue Adjustment Mechanism (LRAM) Recovery (2011) | AA58: Special Billing Service (sub-metering charge per meter) | AM58: Oshawa PUC Networks Inc. | AO58: Residential | AP58: kWh
A59: Unmetered Scattered Load | I59: Rate Rider for Lost Revenue Adjustment Mechanism (LRAM) Recovery / Shared Savings Mechanism (SSM) Recovery | AA59: Special meter reads | AM59: Ottawa River Power Corporation | AO59: Residential - Hensall | AP59: kWh
A60: Embedded Distributor | I60: Rate Rider for Lost Revenue Adjustment Mechanism (LRAM) Recovery / Shared Savings Mechanism (SSM) Recovery – Effective until April 30, 2015 | AA60: Specific Charge for Access to the Power Poles - $/pole/year | AM60: Parry Sound Power Corporation | AO60: Residential – High Density [R1] | AP60: kWh
A61: Farms – Single Phase energy-billed [F1] | I61: Rate Rider for Lost Revenue Adjustment Mechanism (LRAM) Recovery / Shared Savings Mechanism (SSM) Recovery (2009) | AA61: Specific Charge for Bell Canada Access to the Power Poles – per pole/year | AM61: Peterborough Distribution Inc. | AO61: Residential – Normal Density [R2] | AP61: kWh
A62: Farms – Three Phase energy-billed [F3] | I62: Rate Rider for Lost Revenue Adjustment Mechanism (LRAM) Recovery / Shared Savings Mechanism (SSM) Recovery (2010) | AA62: Switching for company maintenance – Charge based on Time and Materials | AM62: PowerStream Inc. | AO62: Residential - Time of Use | AP62: kWh
A63: General Service Single Phase – G1 | I63: Rate Rider for Lost Revenue Adjustment Mechanism (LRAM) Recovery / Shared Savings Mechanism (SSM) Recovery (2011) | AA63: Temporary Service – Install & remove – overhead – no transformer | AM63: PUC Distribution Inc. | AO63: Residential – Urban [UR] | AP63: kWh
A64: General Service Three Phase – G3 | I64: Rate Rider for Lost Revenue Adjustment Mechanism (LRAM) Recovery / Shared Savings Mechanism (SSM) Recovery (2012) | AA64: Temporary Service – Install & remove – overhead – with transformer | AM64: Renfrew Hydro Inc. | AO64: Residential Regular | AP64: kWh
A65: Intermediate With Self Generation | I65: Rate Rider for Lost Revenue Adjustment Mechanism (LRAM) Recovery / Shared Savings Mechanism (SSM) Recovery (2012) - Effective until April 30, 2013 | AA65: Temporary Service – Install & remove – underground – no transformer | AM65: Rideau St. Lawrence Distribution Inc. | AO65: Residential Suburban | AP65: kWh
A66: Residential - Hensall | I66: Rate Rider for Lost Revenue Adjustment Mechanism (LRAM) Recovery / Shared Savings Mechanism (SSM) Recovery (2012) – Effective until April 30, 2014 | AA66: Temporary service install & remove – overhead – no transformer | AM66: St. Thomas Energy Inc. | AO66: Residential Suburban Seasonal | AP66: kWh
A67: Residential – High Density [R1] | I67: Rate Rider for Lost Revenue Adjustment Mechanism (LRAM) Recovery (2011) – Effective until December 31, 2012 | AA67: Temporary Service Install & Remove – Overhead – With Transformer | AM67: Sioux Lookout Hydro Inc. | AO67: Residential Suburban Year Round | AP67: kWh
A68: Residential – Normal Density [R2] | I68: Rate Rider for Lost Revenue Adjustment Mechanism (LRAM) Recovery (2012) – Effective until December 31, 2012 | AA68: Temporary Service Install & Remove – Underground – No Transformer | AM68: Thunder Bay Hydro Electricity Distribution | AO68: Residential Urban | AP68: kWh
A69: Residential – Urban [UR] | I69: Rate Rider for Lost Revenue Adjustment Mechanism (LRAM) Recovery/Shared Savings Mechanism (SSM) Recovery – Effective until March 31, 2016 | AA69: Temporary service installation and removal – overhead – no transformer | AM69: Tillsonburg Hydro Inc. | AO69: Residential Urban Year-Round | AP69: kWh
A70: Residential Suburban | I70: Rate Rider for Recalculated Deferral/Variance Account Disposition (2010) | AA70: Temporary service installation and removal – overhead – with transformer | AM70: Toronto Hydro-Electric System Limited | AO70: Seasonal Residential – High Density [R3] | AP70: kWh
A71: Residential Suburban Seasonal | I71: Rate Rider for Recovery of Foregone Revenue | AA71: Temporary service installation and removal – underground – no transformer | AM71: Veridian Connections Inc. | AO71: Seasonal Residential – Normal Density [R4] | AP71: kWh
A72: Residential Suburban Year Round | I72: Rate Rider for Recovery of Foregone Revenue – Effective until December 31, 2012 | AM72: Wasaga Distribution Inc. | AO72: Seasonal Residential – R4 | AP72: kWh
A73: Residential Urban Year-Round | I73: Rate Rider for Recovery of Incremental Capital Costs | AM73: Waterloo North Hydro Inc. | AO73: Sentinel Lighting | AP73: kW
A74: Seasonal Residential – High Density [R3] | I74: Rate Rider for Recovery of Late Payment – Effective until April 30, 2012 | AM74: Welland Hydro Electric System Corp. | AO74: Small Commercial and USL - per connection | AP74: kW
A75: Seasonal Residential – Normal Density [R4] | I75: Rate Rider for Recovery of Late Payment Penalty Litigation Costs | AM75: Wellington North Power Inc. | AO75: Small Commercial and USL - per meter | AP75: kW
A76: Seasonal Residential – R4 | I76: Rate Rider for Recovery of Late Payment Penalty Litigation Costs (per connection) | AM76: West Coast Huron Energy Inc. | AO76: Standard A General Service Air Access | AP76: kW
A77: Small Commercial and USL - per connection | I77: Rate Rider for Recovery of Late Payment Penalty Litigation Costs – Effective until April 30, 2012 | AM77: Westario Power Inc. | AO77: Standard A General Service Road/Rail | AP77: kW
A78: Small Commercial and USL - per meter | I78: Rate Rider for Recovery of Stranded Meter Assets | AM78: Whitby Hydro Electric Corporation | AO78: Standard A Residential Air Access | AP78: kW
A79: Standard A General Service Air Access | I79: Rate Rider for Recovery of Stranded Meter Assets – Effective until March 31, 2016 | AM79: Woodstock Hydro Services Inc. | AO79: Standard A Residential Road/Rail | AP79: kW
A80: Standard A General Service Road/Rail | I80: Rate Rider for Recovery of Stranded Meter Assets – Effective until December 31, 2012 | AO80: Stand-By | AP80: kW
A81: Standard A Residential Air Access | I81: Rate Rider for Regulatory Asset Recovery | AO81: Standby - General Service 1,000 - 5,000 kW | AP81: kW
A82: Standard A Residential Road/Rail | I82: Rate Rider for Recovery of Residual Historical Smart Meter Costs – Effective until March 31, 2013 | AO82: Standby - General Service 50 - 1,000 kW | AP82: kW
A83: Standby - General Service 1,000 - 5,000 kW | I83: Rate Rider for Return of Revenue Sufficiency | AO83: Standby - Large Use | AP83: kW
A84: Standby - General Service 50 - 1,000 kW | I84: Rate Rider for Return of Transformer Ownership Allowance Sufficiency | AO84: Standby Distribution Service | AP84: kW
A85: Standby - Large Use | I85: Rate Rider for Smart Meter Incremental Revenue Requirement – in effect until the Effective date of the next cost of service application | AO85: Standby Power | AP85: kW
A86: Standby Distribution Service | I86: Rate Rider for Tax Adjustments - Effective until April 30, 2013 | AO86: Standby Power - APPROVED ON AN INTERIM BASIS | AP86: kW
A87: Standby Power | I87: Rate Rider for Tax Adjustments – Effective until December 31, 2012 | AO87: Standby Power – INTERIM APPROVAL | AP87: kW
A88: Standby Power - APPROVED ON AN INTERIM BASIS | I88: Rate Rider for Tax Change | AO88: Standby Power General Service 1,500 to 4,999 kW | AP88: kW
A89: Standby Power – INTERIM APPROVAL | I89: Rate Rider for Tax Change – Effective until April 30, 2012 | AO89: Standby Power General Service 50 to 1,499 kW | AP89: kW
A90: Standby Power General Service 1,500 to 4,999 kW | I90: Rate Rider for Tax Change – Effective until April 30, 2013 | AO90: Standby Power General Service Large Use | AP90: kW
A91: Standby Power General Service 50 to 1,499 kW | I91: Rate Rider for Tax Change – Hydro One Networks | AO91: Street Lighting | AP91: kW
A92: Standby Power General Service Large Use | I92: Rate Rider for Tax Change – Waterloo North Hydro | AO92: Unmetered Scattered Load | AP92: kWh
A93: Westport Sewage Treatment Plant | I93: Rate Rider for Tax Change Dedicated LV Line | AO93: Westport Sewage Treatment Plant | AP93: kW
A94: Year-Round Residential – R2 | I94: Rate Rider for Tax Change Shared LV Line | AO94: Year-Round Residential – R2 | AP94: kWh
I95: Rate Rider for Z-Factor Recovery
I96: Rate Rider for Z-Factor Recovery - Effective Until April 30,2013
I97: Retail Transmission Rate - Line and Transformation Connection Service Rate
I98: Retail Transmission Rate - Line and Transformation Connection Service Rate - (less than 1,000 kW)
I99: Retail Transmission Rate - Line and Transformation Connection Service Rate - Interval Metered
I100: Retail Transmission Rate - Line and Transformation Connection Service Rate - Interval Metered (1,000 to 4,999 kW)
I101: Retail Transmission Rate - Line and Transformation Connection Service Rate - Interval Metered (less than 1,000 kW)
I102: Retail Transmission Rate - Line and Transformation Connection Service Rate - Interval Metered < 1,000 kW
I103: Retail Transmission Rate - Line and Transformation Connection Service Rate - Interval Metered > 1,000 kW
I104: Retail Transmission Rate - Line and Transformation Connection Service Rate - Interval Metered ≥ 1,000kW
I105: Retail Transmission Rate - Line Connection Service Rate
I106: Retail Transmission Rate - Network Service Rate
I107: Retail Transmission Rate - Network Service Rate - (less than 1,000 kW)
I108: Retail Transmission Rate - Network Service Rate - Interval Metered
I109: Retail Transmission Rate - Network Service Rate - Interval Metered (1,000 to 4,999 kW)
I110: Retail Transmission Rate - Network Service Rate - Interval Metered (less than 1,000 kW)
I111: Retail Transmission Rate - Network Service Rate - Interval Metered < 1,000 kW
I112: Retail Transmission Rate - Network Service Rate - Interval Metered > 1,000 kW
I113: Retail Transmission Rate - Network Service Rate - Interval Metered ≥ 1,000 kW
I114: Retail Transmission Rate - Transformation Connection Service Rate
I115: Rural Rate Protection Charge
I116: Rural Rate Protection Charge – Effective on and after May 1, 2012
I117: Service Charge
I118: Service Charge - Effective Until April 30, 2013
I119: Service Charge (Based on 30 day month)
I120: Service Charge (per account)
I121: Service Charge (per connection)
I122: Service Charge (per customer)
I123: Service Charge (per light)
I124: Service Charge for metered account
I125: Smart Grid Rate Adder
I126: Smart Meter Disposition Rider 2 – Effective until next cost of service application
I127: Smart Meter Disposition Rider 3 – Effective until next cost of service application
I128: Smart Meter Funding Adder
I129: Smart Meter Funding Adder – Effective until March 31, 2012
I130: Smart Meter Funding Adder – Effective Until December 31, 2012
I131: Smart Meter Funding Adder – Effective until October 31, 2012
I132: Standard Supply Service – Administrative Charge (if Applicable)
I133: Wholesale Market Service Rate
